{"text_format":"1","workbook":"xlsx","n_sheets":2,"sheets":["Template","Instructions"],"not_rendered":{"charts":0,"images":13,"macros":1,"external_links":0,"defined_names":0,"comments":0,"pivot_tables":0},"unopened":[],"bounds":{"document_bytes":16777216,"sheet_cells":100000,"rows_first":2000,"rows_last":500,"rows_between":2000,"halvings":0,"cell_chars":16384,"cell_head_chars":4096},"cells_cut":0,"cells_raw":0,"read":"whole","date_system":"1900"}

{"sheet":"Template","index":0,"n_rows":4000,"n_cols":6,"rows_kept":4000,"cut":false,"hidden":false,"merged":[]}
["SONA IDs from Qualtrics","SONA IDs from SONA",null,null,null,"Have they completed the survey?"]
[null,null,null,null,{"$f":"LEFT(RIGHT(B2,6),6)","v":""},{"$f":"IF(COUNTIF($A:$A,$E2)>0,\"Yes\", \"No\")","v":"Yes"}]
[null,null,null,null,{"$f":"LEFT(RIGHT(B3,6),6)","v":""},{"$f":"IF(COUNTIF($A:$A,$E3)>0,\"Yes\", \"No\")","v":"Yes"}]
[null,null,null,null,"","Yes"]
[null,null,null,null,"","Yes"]
[null,null,null,null,"","Yes"]
[null,null,null,null,"","Yes"]
[null,null,null,null,"","Yes"]
[null,null,null,null,"","Yes"]
[null,null,null,null,"","Yes"]
[null,null,null,null,"","Yes"]
[null,null,null,null,"","Yes"]
[null,null,null,null,"","Yes"]
[null,null,null,null,"","Yes"]
[null,null,null,null,"","Yes"]
[null,null,null,null,"","Yes"]
[null,null,null,null,"","Yes"]
[null,null,null,null,"","Yes"]
[null,null,null,null,"","Yes"]
[null,null,null,null,"","Yes"]
[null,null,null,null,"","Yes"]
[null,null,null,null,"","Yes"]
[null,null,null,null,"","Yes"]
[null,null,null,null,"","Yes"]
[null,null,null,null,"","Yes"]
[null,null,null,null,"","Yes"]
[null,null,null,null,"","Yes"]
[null,null,null,null,"","Yes"]
[null,null,null,null,"","Yes"]
[null,null,null,null,"","Yes"]
[null,null,null,null,"","Yes"]
[null,null,null,null,"","Yes"]
[null,null,null,null,"","Yes"]
[null,null,null,null,"","Yes"]
[null,null,null,null,"","Yes"]
[null,null,null,null,"","Yes"]
[null,null,null,null,"","Yes"]
[null,null,null,null,"","Yes"]
[null,null,null,null,"","Yes"]
[null,null,null,null,"","Yes"]
[null,null,null,null,"","Yes"]
[null,null,null,null,"","Yes"]
[null,null,null,null,"","Yes"]
[null,null,null,null,"","Yes"]
[null,null,null,null,"","Yes"]
[null,null,null,null,"","Yes"]
[null,null,null,null,"","Yes"]
[null,null,null,null,"","Yes"]
[null,null,null,null,"","Yes"]
[null,null,null,null,"","Yes"]
[null,null,null,null,"","Yes"]
[null,null,null,null,"","Yes"]
[null,null,null,null,"","Yes"]
[null,null,null,null,"","Yes"]
[null,null,null,null,"","Yes"]
[null,null,null,null,"","Yes"]
[null,null,null,null,"","Yes"]
[null,null,null,null,"","Yes"]
[null,null,null,null,"","Yes"]
[null,null,null,null,"","Yes"]
[null,null,null,null,"","Yes"]
[null,null,null,null,"","Yes"]
[null,null,null,null,"","Yes"]
[null,null,null,null,"","Yes"]
[null,null,null,null,"","Yes"]
[null,null,null,null,"","Yes"]
[null,null,null,null,{"$f":"LEFT(RIGHT(B67,6),6)","v":""},{"$f":"IF(COUNTIF($A:$A,$E67)>0,\"Yes\", \"No\")","v":"Yes"}]
[null,null,null,null,"","Yes"]
[null,null,null,null,"","Yes"]
[null,null,null,null,"","Yes"]
[null,null,null,null,"","Yes"]
[null,null,null,null,"","Yes"]
[null,null,null,null,"","Yes"]
[null,null,null,null,"","Yes"]
[null,null,null,null,"","Yes"]
[null,null,null,null,"","Yes"]
[null,null,null,null,"","Yes"]
[null,null,null,null,"","Yes"]
[null,null,null,null,"","Yes"]
[null,null,null,null,"","Yes"]
[null,null,null,null,"","Yes"]
[null,null,null,null,"","Yes"]
[null,null,null,null,"","Yes"]
[null,null,null,null,"","Yes"]
[null,null,null,null,"","Yes"]
[null,null,null,null,"","Yes"]
[null,null,null,null,"","Yes"]
[null,null,null,null,"","Yes"]
[null,null,null,null,"","Yes"]
[null,null,null,null,"","Yes"]
[null,null,null,null,"","Yes"]
[null,null,null,null,"","Yes"]
[null,null,null,null,"","Yes"]
[null,null,null,null,"","Yes"]
[null,null,null,null,"","Yes"]
[null,null,null,null,"","Yes"]
[null,null,null,null,"","Yes"]
[null,null,null,null,"","Yes"]
[null,null,null,null,"","Yes"]
[null,null,null,null,"","Yes"]
[null,null,null,null,"","Yes"]
[null,null,null,null,"","Yes"]
[null,null,null,null,"","Yes"]
[null,null,null,null,"","Yes"]
[null,null,null,null,"","Yes"]
[null,null,null,null,"","Yes"]
[null,null,null,null,"","Yes"]
[null,null,null,null,"","Yes"]
[null,null,null,null,"","Yes"]
[null,null,null,null,"","Yes"]
[null,null,null,null,"","Yes"]
[null,null,null,null,"","Yes"]
[null,null,null,null,"","Yes"]
[null,null,null,null,"","Yes"]
[null,null,null,null,"","Yes"]
[null,null,null,null,"","Yes"]
[null,null,null,null,"","Yes"]
[null,null,null,null,"","Yes"]
[null,null,null,null,"","Yes"]
[null,null,null,null,"","Yes"]
[null,null,null,null,"","Yes"]
[null,null,null,null,"","Yes"]
[null,null,null,null,"","Yes"]
[null,null,null,null,"","Yes"]
[null,null,null,null,"","Yes"]
[null,null,null,null,"","Yes"]
[null,null,null,null,"","Yes"]
[null,null,null,null,"","Yes"]
[null,null,null,null,"","Yes"]
[null,null,null,null,"","Yes"]
[null,null,null,null,{"$f":"LEFT(RIGHT(B131,6),6)","v":""},{"$f":"IF(COUNTIF($A:$A,$E131)>0,\"Yes\", \"No\")","v":"Yes"}]
[null,null,null,null,"","Yes"]
[null,null,null,null,"","Yes"]
[null,null,null,null,"","Yes"]
[null,null,null,null,"","Yes"]
[null,null,null,null,"","Yes"]
[null,null,null,null,"","Yes"]
[null,null,null,null,"","Yes"]
[null,null,null,null,"","Yes"]
[null,null,null,null,"","Yes"]
[null,null,null,null,"","Yes"]
[null,null,null,null,"","Yes"]
[null,null,null,null,"","Yes"]
[null,null,null,null,"","Yes"]
[null,null,null,null,"","Yes"]
[null,null,null,null,"","Yes"]
[null,null,null,null,"","Yes"]
[null,null,null,null,"","Yes"]
[null,null,null,null,"","Yes"]
[null,null,null,null,"","Yes"]
[null,null,null,null,"","Yes"]
[null,null,null,null,"","Yes"]
[null,null,null,null,"","Yes"]
[null,null,null,null,"","Yes"]
[null,null,null,null,"","Yes"]
[null,null,null,null,"","Yes"]
[null,null,null,null,"","Yes"]
[null,null,null,null,"","Yes"]
[null,null,null,null,"","Yes"]
[null,null,null,null,"","Yes"]
[null,null,null,null,"","Yes"]
[null,null,null,null,"","Yes"]
[null,null,null,null,"","Yes"]
[null,null,null,null,"","Yes"]
[null,null,null,null,"","Yes"]
[null,null,null,null,"","Yes"]
[null,null,null,null,"","Yes"]
[null,null,null,null,"","Yes"]
[null,null,null,null,"","Yes"]
[null,null,null,null,"","Yes"]
[null,null,null,null,"","Yes"]
[null,null,null,null,"","Yes"]
[null,null,null,null,"","Yes"]
[null,null,null,null,"","Yes"]
[null,null,null,null,"","Yes"]
[null,null,null,null,"","Yes"]
[null,null,null,null,"","Yes"]
[null,null,null,null,"","Yes"]
[null,null,null,null,"","Yes"]
[null,null,null,null,"","Yes"]
[null,null,null,null,"","Yes"]
[null,null,null,null,"","Yes"]
[null,null,null,null,"","Yes"]
[null,null,null,null,"","Yes"]
[null,null,null,null,"","Yes"]
[null,null,null,null,"","Yes"]
[null,null,null,null,"","Yes"]
[null,null,null,null,"","Yes"]
[null,null,null,null,"","Yes"]
[null,null,null,null,"","Yes"]
[null,null,null,null,"","Yes"]
[null,null,null,null,"","Yes"]
[null,null,null,null,"","Yes"]
[null,null,null,null,"","Yes"]
[null,null,null,null,{"$f":"LEFT(RIGHT(B195,6),6)","v":""},{"$f":"IF(COUNTIF($A:$A,$E195)>0,\"Yes\", \"No\")","v":"Yes"}]
[null,null,null,null,"","Yes"]
[null,null,null,null,"","Yes"]
[null,null,null,null,"","Yes"]
[null,null,null,null,"","Yes"]
[null,null,null,null,"","Yes"]
[null,null,null,null,"","Yes"]
[null,null,null,null,"","Yes"]
[null,null,null,null,"","Yes"]
[null,null,null,null,"","Yes"]
[null,null,null,null,"","Yes"]
[null,null,null,null,"","Yes"]
[null,null,null,null,"","Yes"]
[null,null,null,null,"","Yes"]
[null,null,null,null,"","Yes"]
[null,null,null,null,"","Yes"]
[null,null,null,null,"","Yes"]
[null,null,null,null,"","Yes"]
[null,null,null,null,"","Yes"]
[null,null,null,null,"","Yes"]
[null,null,null,null,"","Yes"]
[null,null,null,null,"","Yes"]
[null,null,null,null,"","Yes"]
[null,null,null,null,"","Yes"]
[null,null,null,null,"","Yes"]
[null,null,null,null,"","Yes"]
[null,null,null,null,"","Yes"]
[null,null,null,null,"","Yes"]
[null,null,null,null,"","Yes"]
[null,null,null,null,"","Yes"]
[null,null,null,null,"","Yes"]
[null,null,null,null,"","Yes"]
[null,null,null,null,"","Yes"]
[null,null,null,null,"","Yes"]
[null,null,null,null,"","Yes"]
[null,null,null,null,"","Yes"]
[null,null,null,null,"","Yes"]
[null,null,null,null,"","Yes"]
[null,null,null,null,"","Yes"]
[null,null,null,null,"","Yes"]
[null,null,null,null,"","Yes"]
[null,null,null,null,"","Yes"]
[null,null,null,null,"","Yes"]
[null,null,null,null,"","Yes"]
[null,null,null,null,"","Yes"]
[null,null,null,null,"","Yes"]
[null,null,null,null,"","Yes"]
[null,null,null,null,"","Yes"]
[null,null,null,null,"","Yes"]
[null,null,null,null,"","Yes"]
[null,null,null,null,"","Yes"]
[null,null,null,null,"","Yes"]
[null,null,null,null,"","Yes"]
[null,null,null,null,"","Yes"]
[null,null,null,null,"","Yes"]
[null,null,null,null,"","Yes"]
[null,null,null,null,"","Yes"]
[null,null,null,null,"","Yes"]
[null,null,null,null,"","Yes"]
[null,null,null,null,"","Yes"]
[null,null,null,null,"","Yes"]
[null,null,null,null,"","Yes"]
[null,null,null,null,"","Yes"]
[null,null,null,null,"","Yes"]
[null,null,null,null,{"$f":"LEFT(RIGHT(B259,6),6)","v":""},{"$f":"IF(COUNTIF($A:$A,$E259)>0,\"Yes\", \"No\")","v":"Yes"}]
[null,null,null,null,"","Yes"]
[null,null,null,null,"","Yes"]
[null,null,null,null,"","Yes"]
[null,null,null,null,"","Yes"]
[null,null,null,null,"","Yes"]
[null,null,null,null,"","Yes"]
[null,null,null,null,"","Yes"]
[null,null,null,null,"","Yes"]
[null,null,null,null,"","Yes"]
[null,null,null,null,"","Yes"]
[null,null,null,null,"","Yes"]
[null,null,null,null,"","Yes"]
[null,null,null,null,"","Yes"]
[null,null,null,null,"","Yes"]
[null,null,null,null,"","Yes"]
[null,null,null,null,"","Yes"]
[null,null,null,null,"","Yes"]
[null,null,null,null,"","Yes"]
[null,null,null,null,"","Yes"]
[null,null,null,null,"","Yes"]
[null,null,null,null,"","Yes"]
[null,null,null,null,"","Yes"]
[null,null,null,null,"","Yes"]
[null,null,null,null,"","Yes"]
[null,null,null,null,"","Yes"]
[null,null,null,null,"","Yes"]
[null,null,null,null,"","Yes"]
[null,null,null,null,"","Yes"]
[null,null,null,null,"","Yes"]
[null,null,null,null,"","Yes"]
[null,null,null,null,"","Yes"]
[null,null,null,null,"","Yes"]
[null,null,null,null,"","Yes"]
[null,null,null,null,"","Yes"]
[null,null,null,null,"","Yes"]
[null,null,null,null,"","Yes"]
[null,null,null,null,"","Yes"]
[null,null,null,null,"","Yes"]
[null,null,null,null,"","Yes"]
[null,null,null,null,"","Yes"]
[null,null,null,null,"","Yes"]
[null,null,null,null,"","Yes"]
[null,null,null,null,"","Yes"]
[null,null,null,null,"","Yes"]
[null,null,null,null,"","Yes"]
[null,null,null,null,"","Yes"]
[null,null,null,null,"","Yes"]
[null,null,null,null,"","Yes"]
[null,null,null,null,"","Yes"]
[null,null,null,null,"","Yes"]
[null,null,null,null,"","Yes"]
[null,null,null,null,"","Yes"]
[null,null,null,null,"","Yes"]
[null,null,null,null,"","Yes"]
[null,null,null,null,"","Yes"]
[null,null,null,null,"","Yes"]
[null,null,null,null,"","Yes"]
[null,null,null,null,"","Yes"]
[null,null,null,null,"","Yes"]
[null,null,null,null,"","Yes"]
[null,null,null,null,"","Yes"]
[null,null,null,null,"","Yes"]
[null,null,null,null,"","Yes"]
[null,null,null,null,{"$f":"LEFT(RIGHT(B323,6),6)","v":""},{"$f":"IF(COUNTIF($A:$A,$E323)>0,\"Yes\", \"No\")","v":"Yes"}]
[null,null,null,null,"","Yes"]
[null,null,null,null,"","Yes"]
[null,null,null,null,"","Yes"]
[null,null,null,null,"","Yes"]
[null,null,null,null,"","Yes"]
[null,null,null,null,"","Yes"]
[null,null,null,null,"","Yes"]
[null,null,null,null,"","Yes"]
[null,null,null,null,"","Yes"]
[null,null,null,null,"","Yes"]
[null,null,null,null,"","Yes"]
[null,null,null,null,"","Yes"]
[null,null,null,null,"","Yes"]
[null,null,null,null,"","Yes"]
[null,null,null,null,"","Yes"]
[null,null,null,null,"","Yes"]
[null,null,null,null,"","Yes"]
[null,null,null,null,"","Yes"]
[null,null,null,null,"","Yes"]
[null,null,null,null,"","Yes"]
[null,null,null,null,"","Yes"]
[null,null,null,null,"","Yes"]
[null,null,null,null,"","Yes"]
[null,null,null,null,"","Yes"]
[null,null,null,null,"","Yes"]
[null,null,null,null,"","Yes"]
[null,null,null,null,"","Yes"]
[null,null,null,null,"","Yes"]
[null,null,null,null,"","Yes"]
[null,null,null,null,"","Yes"]
[null,null,null,null,"","Yes"]
[null,null,null,null,"","Yes"]
[null,null,null,null,"","Yes"]
[null,null,null,null,"","Yes"]
[null,null,null,null,"","Yes"]
[null,null,null,null,"","Yes"]
[null,null,null,null,"","Yes"]
[null,null,null,null,"","Yes"]
[null,null,null,null,"","Yes"]
[null,null,null,null,"","Yes"]
[null,null,null,null,"","Yes"]
[null,null,null,null,"","Yes"]
[null,null,null,null,"","Yes"]
[null,null,null,null,"","Yes"]
[null,null,null,null,"","Yes"]
[null,null,null,null,"","Yes"]
[null,null,null,null,"","Yes"]
[null,null,null,null,"","Yes"]
[null,null,null,null,"","Yes"]
[null,null,null,null,"","Yes"]
[null,null,null,null,"","Yes"]
[null,null,null,null,"","Yes"]
[null,null,null,null,"","Yes"]
[null,null,null,null,"","Yes"]
[null,null,null,null,"","Yes"]
[null,null,null,null,"","Yes"]
[null,null,null,null,"","Yes"]
[null,null,null,null,"","Yes"]
[null,null,null,null,"","Yes"]
[null,null,null,null,"","Yes"]
[null,null,null,null,"","Yes"]
[null,null,null,null,"","Yes"]
[null,null,null,null,"","Yes"]
[null,null,null,null,{"$f":"LEFT(RIGHT(B387,6),6)","v":""},{"$f":"IF(COUNTIF($A:$A,$E387)>0,\"Yes\", \"No\")","v":"Yes"}]
[null,null,null,null,"","Yes"]
[null,null,null,null,"","Yes"]
[null,null,null,null,"","Yes"]
[null,null,null,null,"","Yes"]
[null,null,null,null,"","Yes"]
[null,null,null,null,"","Yes"]
[null,null,null,null,"","Yes"]
[null,null,null,null,"","Yes"]
[null,null,null,null,"","Yes"]
[null,null,null,null,"","Yes"]
[null,null,null,null,"","Yes"]
[null,null,null,null,"","Yes"]
[null,null,null,null,"","Yes"]
[null,null,null,null,"","Yes"]
[null,null,null,null,"","Yes"]
[null,null,null,null,"","Yes"]
[null,null,null,null,"","Yes"]
[null,null,null,null,"","Yes"]
[null,null,null,null,"","Yes"]
[null,null,null,null,"","Yes"]
[null,null,null,null,"","Yes"]
[null,null,null,null,"","Yes"]
[null,null,null,null,"","Yes"]
[null,null,null,null,"","Yes"]
[null,null,null,null,"","Yes"]
[null,null,null,null,"","Yes"]
[null,null,null,null,"","Yes"]
[null,null,null,null,"","Yes"]
[null,null,null,null,"","Yes"]
[null,null,null,null,"","Yes"]
[null,null,null,null,"","Yes"]
[null,null,null,null,"","Yes"]
[null,null,null,null,"","Yes"]
[null,null,null,null,"","Yes"]
[null,null,null,null,"","Yes"]
[null,null,null,null,"","Yes"]
[null,null,null,null,"","Yes"]
[null,null,null,null,"","Yes"]
[null,null,null,null,"","Yes"]
[null,null,null,null,"","Yes"]
[null,null,null,null,"","Yes"]
[null,null,null,null,"","Yes"]
[null,null,null,null,"","Yes"]
[null,null,null,null,"","Yes"]
[null,null,null,null,"","Yes"]
[null,null,null,null,"","Yes"]
[null,null,null,null,"","Yes"]
[null,null,null,null,"","Yes"]
[null,null,null,null,"","Yes"]
[null,null,null,null,"","Yes"]
[null,null,null,null,"","Yes"]
[null,null,null,null,"","Yes"]
[null,null,null,null,"","Yes"]
[null,null,null,null,"","Yes"]
[null,null,null,null,"","Yes"]
[null,null,null,null,"","Yes"]
[null,null,null,null,"","Yes"]
[null,null,null,null,"","Yes"]
[null,null,null,null,"","Yes"]
[null,null,null,null,"","Yes"]
[null,null,null,null,"","Yes"]
[null,null,null,null,"","Yes"]
[null,null,null,null,"","Yes"]
[null,null,null,null,{"$f":"LEFT(RIGHT(B451,6),6)","v":""},{"$f":"IF(COUNTIF($A:$A,$E451)>0,\"Yes\", \"No\")","v":"Yes"}]
[null,null,null,null,"","Yes"]
[null,null,null,null,"","Yes"]
[null,null,null,null,"","Yes"]
[null,null,null,null,"","Yes"]
[null,null,null,null,"","Yes"]
[null,null,null,null,"","Yes"]
[null,null,null,null,"","Yes"]
[null,null,null,null,"","Yes"]
[null,null,null,null,"","Yes"]
[null,null,null,null,"","Yes"]
[null,null,null,null,"","Yes"]
[null,null,null,null,"","Yes"]
[null,null,null,null,"","Yes"]
[null,null,null,null,"","Yes"]
[null,null,null,null,"","Yes"]
[null,null,null,null,"","Yes"]
[null,null,null,null,"","Yes"]
[null,null,null,null,"","Yes"]
[null,null,null,null,"","Yes"]
[null,null,null,null,"","Yes"]
[null,null,null,null,"","Yes"]
[null,null,null,null,"","Yes"]
[null,null,null,null,"","Yes"]
[null,null,null,null,"","Yes"]
[null,null,null,null,"","Yes"]
[null,null,null,null,"","Yes"]
[null,null,null,null,"","Yes"]
[null,null,null,null,"","Yes"]
[null,null,null,null,"","Yes"]
[null,null,null,null,"","Yes"]
[null,null,null,null,"","Yes"]
[null,null,null,null,"","Yes"]
[null,null,null,null,"","Yes"]
[null,null,null,null,"","Yes"]
[null,null,null,null,"","Yes"]
[null,null,null,null,"","Yes"]
[null,null,null,null,"","Yes"]
[null,null,null,null,"","Yes"]
[null,null,null,null,"","Yes"]
[null,null,null,null,"","Yes"]
[null,null,null,null,"","Yes"]
[null,null,null,null,"","Yes"]
[null,null,null,null,"","Yes"]
[null,null,null,null,"","Yes"]
[null,null,null,null,"","Yes"]
[null,null,null,null,"","Yes"]
[null,null,null,null,"","Yes"]
[null,null,null,null,"","Yes"]
[null,null,null,null,"","Yes"]
[null,null,null,null,"","Yes"]
[null,null,null,null,"","Yes"]
[null,null,null,null,"","Yes"]
[null,null,null,null,"","Yes"]
[null,null,null,null,"","Yes"]
[null,null,null,null,"","Yes"]
[null,null,null,null,"","Yes"]
[null,null,null,null,"","Yes"]
[null,null,null,null,"","Yes"]
[null,null,null,null,"","Yes"]
[null,null,null,null,"","Yes"]
[null,null,null,null,"","Yes"]
[null,null,null,null,"","Yes"]
[null,null,null,null,"","Yes"]
[null,null,null,null,{"$f":"LEFT(RIGHT(B515,6),6)","v":""},{"$f":"IF(COUNTIF($A:$A,$E515)>0,\"Yes\", \"No\")","v":"Yes"}]
[null,null,null,null,"","Yes"]
[null,null,null,null,"","Yes"]
[null,null,null,null,"","Yes"]
[null,null,null,null,"","Yes"]
[null,null,null,null,"","Yes"]
[null,null,null,null,"","Yes"]
[null,null,null,null,"","Yes"]
[null,null,null,null,"","Yes"]
[null,null,null,null,"","Yes"]
[null,null,null,null,"","Yes"]
[null,null,null,null,"","Yes"]
[null,null,null,null,"","Yes"]
[null,null,null,null,"","Yes"]
[null,null,null,null,"","Yes"]
[null,null,null,null,"","Yes"]
[null,null,null,null,"","Yes"]
[null,null,null,null,"","Yes"]
[null,null,null,null,"","Yes"]
[null,null,null,null,"","Yes"]
[null,null,null,null,"","Yes"]
[null,null,null,null,"","Yes"]
[null,null,null,null,"","Yes"]
[null,null,null,null,"","Yes"]
[null,null,null,null,"","Yes"]
[null,null,null,null,"","Yes"]
[null,null,null,null,"","Yes"]
[null,null,null,null,"","Yes"]
[null,null,null,null,"","Yes"]
[null,null,null,null,"","Yes"]
[null,null,null,null,"","Yes"]
[null,null,null,null,"","Yes"]
[null,null,null,null,"","Yes"]
[null,null,null,null,"","Yes"]
[null,null,null,null,"","Yes"]
[null,null,null,null,"","Yes"]
[null,null,null,null,"","Yes"]
[null,null,null,null,"","Yes"]
[null,null,null,null,"","Yes"]
[null,null,null,null,"","Yes"]
[null,null,null,null,"","Yes"]
[null,null,null,null,"","Yes"]
[null,null,null,null,"","Yes"]
[null,null,null,null,"","Yes"]
[null,null,null,null,"","Yes"]
[null,null,null,null,"","Yes"]
[null,null,null,null,"","Yes"]
[null,null,null,null,"","Yes"]
[null,null,null,null,"","Yes"]
[null,null,null,null,"","Yes"]
[null,null,null,null,"","Yes"]
[null,null,null,null,"","Yes"]
[null,null,null,null,"","Yes"]
[null,null,null,null,"","Yes"]
[null,null,null,null,"","Yes"]
[null,null,null,null,"","Yes"]
[null,null,null,null,"","Yes"]
[null,null,null,null,"","Yes"]
[null,null,null,null,"","Yes"]
[null,null,null,null,"","Yes"]
[null,null,null,null,"","Yes"]
[null,null,null,null,"","Yes"]
[null,null,null,null,"","Yes"]
[null,null,null,null,"","Yes"]
[null,null,null,null,{"$f":"LEFT(RIGHT(B579,6),6)","v":""},{"$f":"IF(COUNTIF($A:$A,$E579)>0,\"Yes\", \"No\")","v":"Yes"}]
[null,null,null,null,"","Yes"]
[null,null,null,null,"","Yes"]
[null,null,null,null,"","Yes"]
[null,null,null,null,"","Yes"]
[null,null,null,null,"","Yes"]
[null,null,null,null,"","Yes"]
[null,null,null,null,"","Yes"]
[null,null,null,null,"","Yes"]
[null,null,null,null,"","Yes"]
[null,null,null,null,"","Yes"]
[null,null,null,null,"","Yes"]
[null,null,null,null,"","Yes"]
[null,null,null,null,"","Yes"]
[null,null,null,null,"","Yes"]
[null,null,null,null,"","Yes"]
[null,null,null,null,"","Yes"]
[null,null,null,null,"","Yes"]
[null,null,null,null,"","Yes"]
[null,null,null,null,"","Yes"]
[null,null,null,null,"","Yes"]
[null,null,null,null,"","Yes"]
[null,null,null,null,"","Yes"]
[null,null,null,null,"","Yes"]
[null,null,null,null,"","Yes"]
[null,null,null,null,"","Yes"]
[null,null,null,null,"","Yes"]
[null,null,null,null,"","Yes"]
[null,null,null,null,"","Yes"]
[null,null,null,null,"","Yes"]
[null,null,null,null,"","Yes"]
[null,null,null,null,"","Yes"]
[null,null,null,null,"","Yes"]
[null,null,null,null,"","Yes"]
[null,null,null,null,"","Yes"]
[null,null,null,null,"","Yes"]
[null,null,null,null,"","Yes"]
[null,null,null,null,"","Yes"]
[null,null,null,null,"","Yes"]
[null,null,null,null,"","Yes"]
[null,null,null,null,"","Yes"]
[null,null,null,null,"","Yes"]
[null,null,null,null,"","Yes"]
[null,null,null,null,"","Yes"]
[null,null,null,null,"","Yes"]
[null,null,null,null,"","Yes"]
[null,null,null,null,"","Yes"]
[null,null,null,null,"","Yes"]
[null,null,null,null,"","Yes"]
[null,null,null,null,"","Yes"]
[null,null,null,null,"","Yes"]
[null,null,null,null,"","Yes"]
[null,null,null,null,"","Yes"]
[null,null,null,null,"","Yes"]
[null,null,null,null,"","Yes"]
[null,null,null,null,"","Yes"]
[null,null,null,null,"","Yes"]
[null,null,null,null,"","Yes"]
[null,null,null,null,"","Yes"]
[null,null,null,null,"","Yes"]
[null,null,null,null,"","Yes"]
[null,null,null,null,"","Yes"]
[null,null,null,null,"","Yes"]
[null,null,null,null,"","Yes"]
[null,null,null,null,{"$f":"LEFT(RIGHT(B643,6),6)","v":""},{"$f":"IF(COUNTIF($A:$A,$E643)>0,\"Yes\", \"No\")","v":"Yes"}]
[null,null,null,null,"","Yes"]
[null,null,null,null,"","Yes"]
[null,null,null,null,"","Yes"]
[null,null,null,null,"","Yes"]
[null,null,null,null,"","Yes"]
[null,null,null,null,"","Yes"]
[null,null,null,null,"","Yes"]
[null,null,null,null,"","Yes"]
[null,null,null,null,"","Yes"]
[null,null,null,null,"","Yes"]
[null,null,null,null,"","Yes"]
[null,null,null,null,"","Yes"]
[null,null,null,null,"","Yes"]
[null,null,null,null,"","Yes"]
[null,null,null,null,"","Yes"]
[null,null,null,null,"","Yes"]
[null,null,null,null,"","Yes"]
[null,null,null,null,"","Yes"]
[null,null,null,null,"","Yes"]
[null,null,null,null,"","Yes"]
[null,null,null,null,"","Yes"]
[null,null,null,null,"","Yes"]
[null,null,null,null,"","Yes"]
[null,null,null,null,"","Yes"]
[null,null,null,null,"","Yes"]
[null,null,null,null,"","Yes"]
[null,null,null,null,"","Yes"]
[null,null,null,null,"","Yes"]
[null,null,null,null,"","Yes"]
[null,null,null,null,"","Yes"]
[null,null,null,null,"","Yes"]
[null,null,null,null,"","Yes"]
[null,null,null,null,"","Yes"]
[null,null,null,null,"","Yes"]
[null,null,null,null,"","Yes"]
[null,null,null,null,"","Yes"]
[null,null,null,null,"","Yes"]
[null,null,null,null,"","Yes"]
[null,null,null,null,"","Yes"]
[null,null,null,null,"","Yes"]
[null,null,null,null,"","Yes"]
[null,null,null,null,"","Yes"]
[null,null,null,null,"","Yes"]
[null,null,null,null,"","Yes"]
[null,null,null,null,"","Yes"]
[null,null,null,null,"","Yes"]
[null,null,null,null,"","Yes"]
[null,null,null,null,"","Yes"]
[null,null,null,null,"","Yes"]
[null,null,null,null,"","Yes"]
[null,null,null,null,"","Yes"]
[null,null,null,null,"","Yes"]
[null,null,null,null,"","Yes"]
[null,null,null,null,"","Yes"]
[null,null,null,null,"","Yes"]
[null,null,null,null,"","Yes"]
[null,null,null,null,"","Yes"]
[null,null,null,null,"","Yes"]
[null,null,null,null,"","Yes"]
[null,null,null,null,"","Yes"]
[null,null,null,null,"","Yes"]
[null,null,null,null,"","Yes"]
[null,null,null,null,"","Yes"]
[null,null,null,null,{"$f":"LEFT(RIGHT(B707,6),6)","v":""},{"$f":"IF(COUNTIF($A:$A,$E707)>0,\"Yes\", \"No\")","v":"Yes"}]
[null,null,null,null,"","Yes"]
[null,null,null,null,"","Yes"]
[null,null,null,null,"","Yes"]
[null,null,null,null,"","Yes"]
[null,null,null,null,"","Yes"]
[null,null,null,null,"","Yes"]
[null,null,null,null,"","Yes"]
[null,null,null,null,"","Yes"]
[null,null,null,null,"","Yes"]
[null,null,null,null,"","Yes"]
[null,null,null,null,"","Yes"]
[null,null,null,null,"","Yes"]
[null,null,null,null,"","Yes"]
[null,null,null,null,"","Yes"]
[null,null,null,null,"","Yes"]
[null,null,null,null,"","Yes"]
[null,null,null,null,"","Yes"]
[null,null,null,null,"","Yes"]
[null,null,null,null,"","Yes"]
[null,null,null,null,"","Yes"]
[null,null,null,null,"","Yes"]
[null,null,null,null,"","Yes"]
[null,null,null,null,"","Yes"]
[null,null,null,null,"","Yes"]
[null,null,null,null,"","Yes"]
[null,null,null,null,"","Yes"]
[null,null,null,null,"","Yes"]
[null,null,null,null,"","Yes"]
[null,null,null,null,"","Yes"]
[null,null,null,null,"","Yes"]
[null,null,null,null,"","Yes"]
[null,null,null,null,"","Yes"]
[null,null,null,null,"","Yes"]
[null,null,null,null,"","Yes"]
[null,null,null,null,"","Yes"]
[null,null,null,null,"","Yes"]
[null,null,null,null,"","Yes"]
[null,null,null,null,"","Yes"]
[null,null,null,null,"","Yes"]
[null,null,null,null,"","Yes"]
[null,null,null,null,"","Yes"]
[null,null,null,null,"","Yes"]
[null,null,null,null,"","Yes"]
[null,null,null,null,"","Yes"]
[null,null,null,null,"","Yes"]
[null,null,null,null,"","Yes"]
[null,null,null,null,"","Yes"]
[null,null,null,null,"","Yes"]
[null,null,null,null,"","Yes"]
[null,null,null,null,"","Yes"]
[null,null,null,null,"","Yes"]
[null,null,null,null,"","Yes"]
[null,null,null,null,"","Yes"]
[null,null,null,null,"","Yes"]
[null,null,null,null,"","Yes"]
[null,null,null,null,"","Yes"]
[null,null,null,null,"","Yes"]
[null,null,null,null,"","Yes"]
[null,null,null,null,"","Yes"]
[null,null,null,null,"","Yes"]
[null,null,null,null,"","Yes"]
[null,null,null,null,"","Yes"]
[null,null,null,null,"","Yes"]
[null,null,null,null,{"$f":"LEFT(RIGHT(B771,6),6)","v":""},{"$f":"IF(COUNTIF($A:$A,$E771)>0,\"Yes\", \"No\")","v":"Yes"}]
[null,null,null,null,"","Yes"]
[null,null,null,null,"","Yes"]
[null,null,null,null,"","Yes"]
[null,null,null,null,"","Yes"]
[null,null,null,null,"","Yes"]
[null,null,null,null,"","Yes"]
[null,null,null,null,"","Yes"]
[null,null,null,null,"","Yes"]
[null,null,null,null,"","Yes"]
[null,null,null,null,"","Yes"]
[null,null,null,null,"","Yes"]
[null,null,null,null,"","Yes"]
[null,null,null,null,"","Yes"]
[null,null,null,null,"","Yes"]
[null,null,null,null,"","Yes"]
[null,null,null,null,"","Yes"]
[null,null,null,null,"","Yes"]
[null,null,null,null,"","Yes"]
[null,null,null,null,"","Yes"]
[null,null,null,null,"","Yes"]
[null,null,null,null,"","Yes"]
[null,null,null,null,"","Yes"]
[null,null,null,null,"","Yes"]
[null,null,null,null,"","Yes"]
[null,null,null,null,"","Yes"]
[null,null,null,null,"","Yes"]
[null,null,null,null,"","Yes"]
[null,null,null,null,"","Yes"]
[null,null,null,null,"","Yes"]
[null,null,null,null,"","Yes"]
[null,null,null,null,"","Yes"]
[null,null,null,null,"","Yes"]
[null,null,null,null,"","Yes"]
[null,null,null,null,"","Yes"]
[null,null,null,null,"","Yes"]
[null,null,null,null,"","Yes"]
[null,null,null,null,"","Yes"]
[null,null,null,null,"","Yes"]
[null,null,null,null,"","Yes"]
[null,null,null,null,"","Yes"]
[null,null,null,null,"","Yes"]
[null,null,null,null,"","Yes"]
[null,null,null,null,"","Yes"]
[null,null,null,null,"","Yes"]
[null,null,null,null,"","Yes"]
[null,null,null,null,"","Yes"]
[null,null,null,null,"","Yes"]
[null,null,null,null,"","Yes"]
[null,null,null,null,"","Yes"]
[null,null,null,null,"","Yes"]
[null,null,null,null,"","Yes"]
[null,null,null,null,"","Yes"]
[null,null,null,null,"","Yes"]
[null,null,null,null,"","Yes"]
[null,null,null,null,"","Yes"]
[null,null,null,null,"","Yes"]
[null,null,null,null,"","Yes"]
[null,null,null,null,"","Yes"]
[null,null,null,null,"","Yes"]
[null,null,null,null,"","Yes"]
[null,null,null,null,"","Yes"]
[null,null,null,null,"","Yes"]
[null,null,null,null,"","Yes"]
[null,null,null,null,{"$f":"LEFT(RIGHT(B835,6),6)","v":""},{"$f":"IF(COUNTIF($A:$A,$E835)>0,\"Yes\", \"No\")","v":"Yes"}]
[null,null,null,null,"","Yes"]
[null,null,null,null,"","Yes"]
[null,null,null,null,"","Yes"]
[null,null,null,null,"","Yes"]
[null,null,null,null,"","Yes"]
[null,null,null,null,"","Yes"]
[null,null,null,null,"","Yes"]
[null,null,null,null,"","Yes"]
[null,null,null,null,"","Yes"]
[null,null,null,null,"","Yes"]
[null,null,null,null,"","Yes"]
[null,null,null,null,"","Yes"]
[null,null,null,null,"","Yes"]
[null,null,null,null,"","Yes"]
[null,null,null,null,"","Yes"]
[null,null,null,null,"","Yes"]
[null,null,null,null,"","Yes"]
[null,null,null,null,"","Yes"]
[null,null,null,null,"","Yes"]
[null,null,null,null,"","Yes"]
[null,null,null,null,"","Yes"]
[null,null,null,null,"","Yes"]
[null,null,null,null,"","Yes"]
[null,null,null,null,"","Yes"]
[null,null,null,null,"","Yes"]
[null,null,null,null,"","Yes"]
[null,null,null,null,"","Yes"]
[null,null,null,null,"","Yes"]
[null,null,null,null,"","Yes"]
[null,null,null,null,"","Yes"]
[null,null,null,null,"","Yes"]
[null,null,null,null,"","Yes"]
[null,null,null,null,"","Yes"]
[null,null,null,null,"","Yes"]
[null,null,null,null,"","Yes"]
[null,null,null,null,"","Yes"]
[null,null,null,null,"","Yes"]
[null,null,null,null,"","Yes"]
[null,null,null,null,"","Yes"]
[null,null,null,null,"","Yes"]
[null,null,null,null,"","Yes"]
[null,null,null,null,"","Yes"]
[null,null,null,null,"","Yes"]
[null,null,null,null,"","Yes"]
[null,null,null,null,"","Yes"]
[null,null,null,null,"","Yes"]
[null,null,null,null,"","Yes"]
[null,null,null,null,"","Yes"]
[null,null,null,null,"","Yes"]
[null,null,null,null,"","Yes"]
[null,null,null,null,"","Yes"]
[null,null,null,null,"","Yes"]
[null,null,null,null,"","Yes"]
[null,null,null,null,"","Yes"]
[null,null,null,null,"","Yes"]
[null,null,null,null,"","Yes"]
[null,null,null,null,"","Yes"]
[null,null,null,null,"","Yes"]
[null,null,null,null,"","Yes"]
[null,null,null,null,"","Yes"]
[null,null,null,null,"","Yes"]
[null,null,null,null,"","Yes"]
[null,null,null,null,"","Yes"]
[null,null,null,null,{"$f":"LEFT(RIGHT(B899,6),6)","v":""},{"$f":"IF(COUNTIF($A:$A,$E899)>0,\"Yes\", \"No\")","v":"Yes"}]
[null,null,null,null,"","Yes"]
[null,null,null,null,"","Yes"]
[null,null,null,null,"","Yes"]
[null,null,null,null,"","Yes"]
[null,null,null,null,"","Yes"]
[null,null,null,null,"","Yes"]
[null,null,null,null,"","Yes"]
[null,null,null,null,"","Yes"]
[null,null,null,null,"","Yes"]
[null,null,null,null,"","Yes"]
[null,null,null,null,"","Yes"]
[null,null,null,null,"","Yes"]
[null,null,null,null,"","Yes"]
[null,null,null,null,"","Yes"]
[null,null,null,null,"","Yes"]
[null,null,null,null,"","Yes"]
[null,null,null,null,"","Yes"]
[null,null,null,null,"","Yes"]
[null,null,null,null,"","Yes"]
[null,null,null,null,"","Yes"]
[null,null,null,null,"","Yes"]
[null,null,null,null,"","Yes"]
[null,null,null,null,"","Yes"]
[null,null,null,null,"","Yes"]
[null,null,null,null,"","Yes"]
[null,null,null,null,"","Yes"]
[null,null,null,null,"","Yes"]
[null,null,null,null,"","Yes"]
[null,null,null,null,"","Yes"]
[null,null,null,null,"","Yes"]
[null,null,null,null,"","Yes"]
[null,null,null,null,"","Yes"]
[null,null,null,null,"","Yes"]
[null,null,null,null,"","Yes"]
[null,null,null,null,"","Yes"]
[null,null,null,null,"","Yes"]
[null,null,null,null,"","Yes"]
[null,null,null,null,"","Yes"]
[null,null,null,null,"","Yes"]
[null,null,null,null,"","Yes"]
[null,null,null,null,"","Yes"]
[null,null,null,null,"","Yes"]
[null,null,null,null,"","Yes"]
[null,null,null,null,"","Yes"]
[null,null,null,null,"","Yes"]
[null,null,null,null,"","Yes"]
[null,null,null,null,"","Yes"]
[null,null,null,null,"","Yes"]
[null,null,null,null,"","Yes"]
[null,null,null,null,"","Yes"]
[null,null,null,null,"","Yes"]
[null,null,null,null,"","Yes"]
[null,null,null,null,"","Yes"]
[null,null,null,null,"","Yes"]
[null,null,null,null,"","Yes"]
[null,null,null,null,"","Yes"]
[null,null,null,null,"","Yes"]
[null,null,null,null,"","Yes"]
[null,null,null,null,"","Yes"]
[null,null,null,null,"","Yes"]
[null,null,null,null,"","Yes"]
[null,null,null,null,"","Yes"]
[null,null,null,null,"","Yes"]
[null,null,null,null,{"$f":"LEFT(RIGHT(B963,6),6)","v":""},{"$f":"IF(COUNTIF($A:$A,$E963)>0,\"Yes\", \"No\")","v":"Yes"}]
[null,null,null,null,"","Yes"]
[null,null,null,null,"","Yes"]
[null,null,null,null,"","Yes"]
[null,null,null,null,"","Yes"]
[null,null,null,null,"","Yes"]
[null,null,null,null,"","Yes"]
[null,null,null,null,"","Yes"]
[null,null,null,null,"","Yes"]
[null,null,null,null,"","Yes"]
[null,null,null,null,"","Yes"]
[null,null,null,null,"","Yes"]
[null,null,null,null,"","Yes"]
[null,null,null,null,"","Yes"]
[null,null,null,null,"","Yes"]
[null,null,null,null,"","Yes"]
[null,null,null,null,"","Yes"]
[null,null,null,null,"","Yes"]
[null,null,null,null,"","Yes"]
[null,null,null,null,"","Yes"]
[null,null,null,null,"","Yes"]
[null,null,null,null,"","Yes"]
[null,null,null,null,"","Yes"]
[null,null,null,null,"","Yes"]
[null,null,null,null,"","Yes"]
[null,null,null,null,"","Yes"]
[null,null,null,null,"","Yes"]
[null,null,null,null,"","Yes"]
[null,null,null,null,"","Yes"]
[null,null,null,null,"","Yes"]
[null,null,null,null,"","Yes"]
[null,null,null,null,"","Yes"]
[null,null,null,null,"","Yes"]
[null,null,null,null,"","Yes"]
[null,null,null,null,"","Yes"]
[null,null,null,null,"","Yes"]
[null,null,null,null,"","Yes"]
[null,null,null,null,"","Yes"]
[null,null,null,null,"","Yes"]
[null,null,null,null,"","Yes"]
[null,null,null,null,"","Yes"]
[null,null,null,null,"","Yes"]
[null,null,null,null,"","Yes"]
[null,null,null,null,"","Yes"]
[null,null,null,null,"","Yes"]
[null,null,null,null,"","Yes"]
[null,null,null,null,"","Yes"]
[null,null,null,null,"","Yes"]
[null,null,null,null,"","Yes"]
[null,null,null,null,"","Yes"]
[null,null,null,null,"","Yes"]
[null,null,null,null,"","Yes"]
[null,null,null,null,"","Yes"]
[null,null,null,null,"","Yes"]
[null,null,null,null,"","Yes"]
[null,null,null,null,"","Yes"]
[null,null,null,null,"","Yes"]
[null,null,null,null,"","Yes"]
[null,null,null,null,"","Yes"]
[null,null,null,null,"","Yes"]
[null,null,null,null,"","Yes"]
[null,null,null,null,"","Yes"]
[null,null,null,null,"","Yes"]
[null,null,null,null,"","Yes"]
[null,null,null,null,{"$f":"LEFT(RIGHT(B1027,6),6)","v":""},{"$f":"IF(COUNTIF($A:$A,$E1027)>0,\"Yes\", \"No\")","v":"Yes"}]
[null,null,null,null,"","Yes"]
[null,null,null,null,"","Yes"]
[null,null,null,null,"","Yes"]
[null,null,null,null,"","Yes"]
[null,null,null,null,"","Yes"]
[null,null,null,null,"","Yes"]
[null,null,null,null,"","Yes"]
[null,null,null,null,"","Yes"]
[null,null,null,null,"","Yes"]
[null,null,null,null,"","Yes"]
[null,null,null,null,"","Yes"]
[null,null,null,null,"","Yes"]
[null,null,null,null,"","Yes"]
[null,null,null,null,"","Yes"]
[null,null,null,null,"","Yes"]
[null,null,null,null,"","Yes"]
[null,null,null,null,"","Yes"]
[null,null,null,null,"","Yes"]
[null,null,null,null,"","Yes"]
[null,null,null,null,"","Yes"]
[null,null,null,null,"","Yes"]
[null,null,null,null,"","Yes"]
[null,null,null,null,"","Yes"]
[null,null,null,null,"","Yes"]
[null,null,null,null,"","Yes"]
[null,null,null,null,"","Yes"]
[null,null,null,null,"","Yes"]
[null,null,null,null,"","Yes"]
[null,null,null,null,"","Yes"]
[null,null,null,null,"","Yes"]
[null,null,null,null,"","Yes"]
[null,null,null,null,"","Yes"]
[null,null,null,null,"","Yes"]
[null,null,null,null,"","Yes"]
[null,null,null,null,"","Yes"]
[null,null,null,null,"","Yes"]
[null,null,null,null,"","Yes"]
[null,null,null,null,"","Yes"]
[null,null,null,null,"","Yes"]
[null,null,null,null,"","Yes"]
[null,null,null,null,"","Yes"]
[null,null,null,null,"","Yes"]
[null,null,null,null,"","Yes"]
[null,null,null,null,"","Yes"]
[null,null,null,null,"","Yes"]
[null,null,null,null,"","Yes"]
[null,null,null,null,"","Yes"]
[null,null,null,null,"","Yes"]
[null,null,null,null,"","Yes"]
[null,null,null,null,"","Yes"]
[null,null,null,null,"","Yes"]
[null,null,null,null,"","Yes"]
[null,null,null,null,"","Yes"]
[null,null,null,null,"","Yes"]
[null,null,null,null,"","Yes"]
[null,null,null,null,"","Yes"]
[null,null,null,null,"","Yes"]
[null,null,null,null,"","Yes"]
[null,null,null,null,"","Yes"]
[null,null,null,null,"","Yes"]
[null,null,null,null,"","Yes"]
[null,null,null,null,"","Yes"]
[null,null,null,null,"","Yes"]
[null,null,null,null,{"$f":"LEFT(RIGHT(B1091,6),6)","v":""},{"$f":"IF(COUNTIF($A:$A,$E1091)>0,\"Yes\", \"No\")","v":"Yes"}]
[null,null,null,null,"","Yes"]
[null,null,null,null,"","Yes"]
[null,null,null,null,"","Yes"]
[null,null,null,null,"","Yes"]
[null,null,null,null,"","Yes"]
[null,null,null,null,"","Yes"]
[null,null,null,null,"","Yes"]
[null,null,null,null,"","Yes"]
[null,null,null,null,"","Yes"]
[null,null,null,null,"","Yes"]
[null,null,null,null,"","Yes"]
[null,null,null,null,"","Yes"]
[null,null,null,null,"","Yes"]
[null,null,null,null,"","Yes"]
[null,null,null,null,"","Yes"]
[null,null,null,null,"","Yes"]
[null,null,null,null,"","Yes"]
[null,null,null,null,"","Yes"]
[null,null,null,null,"","Yes"]
[null,null,null,null,"","Yes"]
[null,null,null,null,"","Yes"]
[null,null,null,null,"","Yes"]
[null,null,null,null,"","Yes"]
[null,null,null,null,"","Yes"]
[null,null,null,null,"","Yes"]
[null,null,null,null,"","Yes"]
[null,null,null,null,"","Yes"]
[null,null,null,null,"","Yes"]
[null,null,null,null,"","Yes"]
[null,null,null,null,"","Yes"]
[null,null,null,null,"","Yes"]
[null,null,null,null,"","Yes"]
[null,null,null,null,"","Yes"]
[null,null,null,null,"","Yes"]
[null,null,null,null,"","Yes"]
[null,null,null,null,"","Yes"]
[null,null,null,null,"","Yes"]
[null,null,null,null,"","Yes"]
[null,null,null,null,"","Yes"]
[null,null,null,null,"","Yes"]
[null,null,null,null,"","Yes"]
[null,null,null,null,"","Yes"]
[null,null,null,null,"","Yes"]
[null,null,null,null,"","Yes"]
[null,null,null,null,"","Yes"]
[null,null,null,null,"","Yes"]
[null,null,null,null,"","Yes"]
[null,null,null,null,"","Yes"]
[null,null,null,null,"","Yes"]
[null,null,null,null,"","Yes"]
[null,null,null,null,"","Yes"]
[null,null,null,null,"","Yes"]
[null,null,null,null,"","Yes"]
[null,null,null,null,"","Yes"]
[null,null,null,null,"","Yes"]
[null,null,null,null,"","Yes"]
[null,null,null,null,"","Yes"]
[null,null,null,null,"","Yes"]
[null,null,null,null,"","Yes"]
[null,null,null,null,"","Yes"]
[null,null,null,null,"","Yes"]
[null,null,null,null,"","Yes"]
[null,null,null,null,"","Yes"]
[null,null,null,null,{"$f":"LEFT(RIGHT(B1155,6),6)","v":""},{"$f":"IF(COUNTIF($A:$A,$E1155)>0,\"Yes\", \"No\")","v":"Yes"}]
[null,null,null,null,"","Yes"]
[null,null,null,null,"","Yes"]
[null,null,null,null,"","Yes"]
[null,null,null,null,"","Yes"]
[null,null,null,null,"","Yes"]
[null,null,null,null,"","Yes"]
[null,null,null,null,"","Yes"]
[null,null,null,null,"","Yes"]
[null,null,null,null,"","Yes"]
[null,null,null,null,"","Yes"]
[null,null,null,null,"","Yes"]
[null,null,null,null,"","Yes"]
[null,null,null,null,"","Yes"]
[null,null,null,null,"","Yes"]
[null,null,null,null,"","Yes"]
[null,null,null,null,"","Yes"]
[null,null,null,null,"","Yes"]
[null,null,null,null,"","Yes"]
[null,null,null,null,"","Yes"]
[null,null,null,null,"","Yes"]
[null,null,null,null,"","Yes"]
[null,null,null,null,"","Yes"]
[null,null,null,null,"","Yes"]
[null,null,null,null,"","Yes"]
[null,null,null,null,"","Yes"]
[null,null,null,null,"","Yes"]
[null,null,null,null,"","Yes"]
[null,null,null,null,"","Yes"]
[null,null,null,null,"","Yes"]
[null,null,null,null,"","Yes"]
[null,null,null,null,"","Yes"]
[null,null,null,null,"","Yes"]
[null,null,null,null,"","Yes"]
[null,null,null,null,"","Yes"]
[null,null,null,null,"","Yes"]
[null,null,null,null,"","Yes"]
[null,null,null,null,"","Yes"]
[null,null,null,null,"","Yes"]
[null,null,null,null,"","Yes"]
[null,null,null,null,"","Yes"]
[null,null,null,null,"","Yes"]
[null,null,null,null,"","Yes"]
[null,null,null,null,"","Yes"]
[null,null,null,null,"","Yes"]
[null,null,null,null,"","Yes"]
[null,null,null,null,"","Yes"]
[null,null,null,null,"","Yes"]
[null,null,null,null,"","Yes"]
[null,null,null,null,"","Yes"]
[null,null,null,null,"","Yes"]
[null,null,null,null,"","Yes"]
[null,null,null,null,"","Yes"]
[null,null,null,null,"","Yes"]
[null,null,null,null,"","Yes"]
[null,null,null,null,"","Yes"]
[null,null,null,null,"","Yes"]
[null,null,null,null,"","Yes"]
[null,null,null,null,"","Yes"]
[null,null,null,null,"","Yes"]
[null,null,null,null,"","Yes"]
[null,null,null,null,"","Yes"]
[null,null,null,null,"","Yes"]
[null,null,null,null,"","Yes"]
[null,null,null,null,{"$f":"LEFT(RIGHT(B1219,6),6)","v":""},{"$f":"IF(COUNTIF($A:$A,$E1219)>0,\"Yes\", \"No\")","v":"Yes"}]
[null,null,null,null,"","Yes"]
[null,null,null,null,"","Yes"]
[null,null,null,null,"","Yes"]
[null,null,null,null,"","Yes"]
[null,null,null,null,"","Yes"]
[null,null,null,null,"","Yes"]
[null,null,null,null,"","Yes"]
[null,null,null,null,"","Yes"]
[null,null,null,null,"","Yes"]
[null,null,null,null,"","Yes"]
[null,null,null,null,"","Yes"]
[null,null,null,null,"","Yes"]
[null,null,null,null,"","Yes"]
[null,null,null,null,"","Yes"]
[null,null,null,null,"","Yes"]
[null,null,null,null,"","Yes"]
[null,null,null,null,"","Yes"]
[null,null,null,null,"","Yes"]
[null,null,null,null,"","Yes"]
[null,null,null,null,"","Yes"]
[null,null,null,null,"","Yes"]
[null,null,null,null,"","Yes"]
[null,null,null,null,"","Yes"]
[null,null,null,null,"","Yes"]
[null,null,null,null,"","Yes"]
[null,null,null,null,"","Yes"]
[null,null,null,null,"","Yes"]
[null,null,null,null,"","Yes"]
[null,null,null,null,"","Yes"]
[null,null,null,null,"","Yes"]
[null,null,null,null,"","Yes"]
[null,null,null,null,"","Yes"]
[null,null,null,null,"","Yes"]
[null,null,null,null,"","Yes"]
[null,null,null,null,"","Yes"]
[null,null,null,null,"","Yes"]
[null,null,null,null,"","Yes"]
[null,null,null,null,"","Yes"]
[null,null,null,null,"","Yes"]
[null,null,null,null,"","Yes"]
[null,null,null,null,"","Yes"]
[null,null,null,null,"","Yes"]
[null,null,null,null,"","Yes"]
[null,null,null,null,"","Yes"]
[null,null,null,null,"","Yes"]
[null,null,null,null,"","Yes"]
[null,null,null,null,"","Yes"]
[null,null,null,null,"","Yes"]
[null,null,null,null,"","Yes"]
[null,null,null,null,"","Yes"]
[null,null,null,null,"","Yes"]
[null,null,null,null,"","Yes"]
[null,null,null,null,"","Yes"]
[null,null,null,null,"","Yes"]
[null,null,null,null,"","Yes"]
[null,null,null,null,"","Yes"]
[null,null,null,null,"","Yes"]
[null,null,null,null,"","Yes"]
[null,null,null,null,"","Yes"]
[null,null,null,null,"","Yes"]
[null,null,null,null,"","Yes"]
[null,null,null,null,"","Yes"]
[null,null,null,null,"","Yes"]
[null,null,null,null,{"$f":"LEFT(RIGHT(B1283,6),6)","v":""},{"$f":"IF(COUNTIF($A:$A,$E1283)>0,\"Yes\", \"No\")","v":"Yes"}]
[null,null,null,null,"","Yes"]
[null,null,null,null,"","Yes"]
[null,null,null,null,"","Yes"]
[null,null,null,null,"","Yes"]
[null,null,null,null,"","Yes"]
[null,null,null,null,"","Yes"]
[null,null,null,null,"","Yes"]
[null,null,null,null,"","Yes"]
[null,null,null,null,"","Yes"]
[null,null,null,null,"","Yes"]
[null,null,null,null,"","Yes"]
[null,null,null,null,"","Yes"]
[null,null,null,null,"","Yes"]
[null,null,null,null,"","Yes"]
[null,null,null,null,"","Yes"]
[null,null,null,null,"","Yes"]
[null,null,null,null,"","Yes"]
[null,null,null,null,"","Yes"]
[null,null,null,null,"","Yes"]
[null,null,null,null,"","Yes"]
[null,null,null,null,"","Yes"]
[null,null,null,null,"","Yes"]
[null,null,null,null,"","Yes"]
[null,null,null,null,"","Yes"]
[null,null,null,null,"","Yes"]
[null,null,null,null,"","Yes"]
[null,null,null,null,"","Yes"]
[null,null,null,null,"","Yes"]
[null,null,null,null,"","Yes"]
[null,null,null,null,"","Yes"]
[null,null,null,null,"","Yes"]
[null,null,null,null,"","Yes"]
[null,null,null,null,"","Yes"]
[null,null,null,null,"","Yes"]
[null,null,null,null,"","Yes"]
[null,null,null,null,"","Yes"]
[null,null,null,null,"","Yes"]
[null,null,null,null,"","Yes"]
[null,null,null,null,"","Yes"]
[null,null,null,null,"","Yes"]
[null,null,null,null,"","Yes"]
[null,null,null,null,"","Yes"]
[null,null,null,null,"","Yes"]
[null,null,null,null,"","Yes"]
[null,null,null,null,"","Yes"]
[null,null,null,null,"","Yes"]
[null,null,null,null,"","Yes"]
[null,null,null,null,"","Yes"]
[null,null,null,null,"","Yes"]
[null,null,null,null,"","Yes"]
[null,null,null,null,"","Yes"]
[null,null,null,null,"","Yes"]
[null,null,null,null,"","Yes"]
[null,null,null,null,"","Yes"]
[null,null,null,null,"","Yes"]
[null,null,null,null,"","Yes"]
[null,null,null,null,"","Yes"]
[null,null,null,null,"","Yes"]
[null,null,null,null,"","Yes"]
[null,null,null,null,"","Yes"]
[null,null,null,null,"","Yes"]
[null,null,null,null,"","Yes"]
[null,null,null,null,"","Yes"]
[null,null,null,null,{"$f":"LEFT(RIGHT(B1347,6),6)","v":""},{"$f":"IF(COUNTIF($A:$A,$E1347)>0,\"Yes\", \"No\")","v":"Yes"}]
[null,null,null,null,"","Yes"]
[null,null,null,null,"","Yes"]
[null,null,null,null,"","Yes"]
[null,null,null,null,"","Yes"]
[null,null,null,null,"","Yes"]
[null,null,null,null,"","Yes"]
[null,null,null,null,"","Yes"]
[null,null,null,null,"","Yes"]
[null,null,null,null,"","Yes"]
[null,null,null,null,"","Yes"]
[null,null,null,null,"","Yes"]
[null,null,null,null,"","Yes"]
[null,null,null,null,"","Yes"]
[null,null,null,null,"","Yes"]
[null,null,null,null,"","Yes"]
[null,null,null,null,"","Yes"]
[null,null,null,null,"","Yes"]
[null,null,null,null,"","Yes"]
[null,null,null,null,"","Yes"]
[null,null,null,null,"","Yes"]
[null,null,null,null,"","Yes"]
[null,null,null,null,"","Yes"]
[null,null,null,null,"","Yes"]
[null,null,null,null,"","Yes"]
[null,null,null,null,"","Yes"]
[null,null,null,null,"","Yes"]
[null,null,null,null,"","Yes"]
[null,null,null,null,"","Yes"]
[null,null,null,null,"","Yes"]
[null,null,null,null,"","Yes"]
[null,null,null,null,"","Yes"]
[null,null,null,null,"","Yes"]
[null,null,null,null,"","Yes"]
[null,null,null,null,"","Yes"]
[null,null,null,null,"","Yes"]
[null,null,null,null,"","Yes"]
[null,null,null,null,"","Yes"]
[null,null,null,null,"","Yes"]
[null,null,null,null,"","Yes"]
[null,null,null,null,"","Yes"]
[null,null,null,null,"","Yes"]
[null,null,null,null,"","Yes"]
[null,null,null,null,"","Yes"]
[null,null,null,null,"","Yes"]
[null,null,null,null,"","Yes"]
[null,null,null,null,"","Yes"]
[null,null,null,null,"","Yes"]
[null,null,null,null,"","Yes"]
[null,null,null,null,"","Yes"]
[null,null,null,null,"","Yes"]
[null,null,null,null,"","Yes"]
[null,null,null,null,"","Yes"]
[null,null,null,null,"","Yes"]
[null,null,null,null,"","Yes"]
[null,null,null,null,"","Yes"]
[null,null,null,null,"","Yes"]
[null,null,null,null,"","Yes"]
[null,null,null,null,"","Yes"]
[null,null,null,null,"","Yes"]
[null,null,null,null,"","Yes"]
[null,null,null,null,"","Yes"]
[null,null,null,null,"","Yes"]
[null,null,null,null,"","Yes"]
[null,null,null,null,{"$f":"LEFT(RIGHT(B1411,6),6)","v":""},{"$f":"IF(COUNTIF($A:$A,$E1411)>0,\"Yes\", \"No\")","v":"Yes"}]
[null,null,null,null,"","Yes"]
[null,null,null,null,"","Yes"]
[null,null,null,null,"","Yes"]
[null,null,null,null,"","Yes"]
[null,null,null,null,"","Yes"]
[null,null,null,null,"","Yes"]
[null,null,null,null,"","Yes"]
[null,null,null,null,"","Yes"]
[null,null,null,null,"","Yes"]
[null,null,null,null,"","Yes"]
[null,null,null,null,"","Yes"]
[null,null,null,null,"","Yes"]
[null,null,null,null,"","Yes"]
[null,null,null,null,"","Yes"]
[null,null,null,null,"","Yes"]
[null,null,null,null,"","Yes"]
[null,null,null,null,"","Yes"]
[null,null,null,null,"","Yes"]
[null,null,null,null,"","Yes"]
[null,null,null,null,"","Yes"]
[null,null,null,null,"","Yes"]
[null,null,null,null,"","Yes"]
[null,null,null,null,"","Yes"]
[null,null,null,null,"","Yes"]
[null,null,null,null,"","Yes"]
[null,null,null,null,"","Yes"]
[null,null,null,null,"","Yes"]
[null,null,null,null,"","Yes"]
[null,null,null,null,"","Yes"]
[null,null,null,null,"","Yes"]
[null,null,null,null,"","Yes"]
[null,null,null,null,"","Yes"]
[null,null,null,null,"","Yes"]
[null,null,null,null,"","Yes"]
[null,null,null,null,"","Yes"]
[null,null,null,null,"","Yes"]
[null,null,null,null,"","Yes"]
[null,null,null,null,"","Yes"]
[null,null,null,null,"","Yes"]
[null,null,null,null,"","Yes"]
[null,null,null,null,"","Yes"]
[null,null,null,null,"","Yes"]
[null,null,null,null,"","Yes"]
[null,null,null,null,"","Yes"]
[null,null,null,null,"","Yes"]
[null,null,null,null,"","Yes"]
[null,null,null,null,"","Yes"]
[null,null,null,null,"","Yes"]
[null,null,null,null,"","Yes"]
[null,null,null,null,"","Yes"]
[null,null,null,null,"","Yes"]
[null,null,null,null,"","Yes"]
[null,null,null,null,"","Yes"]
[null,null,null,null,"","Yes"]
[null,null,null,null,"","Yes"]
[null,null,null,null,"","Yes"]
[null,null,null,null,"","Yes"]
[null,null,null,null,"","Yes"]
[null,null,null,null,"","Yes"]
[null,null,null,null,"","Yes"]
[null,null,null,null,"","Yes"]
[null,null,null,null,"","Yes"]
[null,null,null,null,"","Yes"]
[null,null,null,null,{"$f":"LEFT(RIGHT(B1475,6),6)","v":""},{"$f":"IF(COUNTIF($A:$A,$E1475)>0,\"Yes\", \"No\")","v":"Yes"}]
[null,null,null,null,"","Yes"]
[null,null,null,null,"","Yes"]
[null,null,null,null,"","Yes"]
[null,null,null,null,"","Yes"]
[null,null,null,null,"","Yes"]
[null,null,null,null,"","Yes"]
[null,null,null,null,"","Yes"]
[null,null,null,null,"","Yes"]
[null,null,null,null,"","Yes"]
[null,null,null,null,"","Yes"]
[null,null,null,null,"","Yes"]
[null,null,null,null,"","Yes"]
[null,null,null,null,"","Yes"]
[null,null,null,null,"","Yes"]
[null,null,null,null,"","Yes"]
[null,null,null,null,"","Yes"]
[null,null,null,null,"","Yes"]
[null,null,null,null,"","Yes"]
[null,null,null,null,"","Yes"]
[null,null,null,null,"","Yes"]
[null,null,null,null,"","Yes"]
[null,null,null,null,"","Yes"]
[null,null,null,null,"","Yes"]
[null,null,null,null,"","Yes"]
[null,null,null,null,"","Yes"]
[null,null,null,null,"","Yes"]
[null,null,null,null,"","Yes"]
[null,null,null,null,"","Yes"]
[null,null,null,null,"","Yes"]
[null,null,null,null,"","Yes"]
[null,null,null,null,"","Yes"]
[null,null,null,null,"","Yes"]
[null,null,null,null,"","Yes"]
[null,null,null,null,"","Yes"]
[null,null,null,null,"","Yes"]
[null,null,null,null,"","Yes"]
[null,null,null,null,"","Yes"]
[null,null,null,null,"","Yes"]
[null,null,null,null,"","Yes"]
[null,null,null,null,"","Yes"]
[null,null,null,null,"","Yes"]
[null,null,null,null,"","Yes"]
[null,null,null,null,"","Yes"]
[null,null,null,null,"","Yes"]
[null,null,null,null,"","Yes"]
[null,null,null,null,"","Yes"]
[null,null,null,null,"","Yes"]
[null,null,null,null,"","Yes"]
[null,null,null,null,"","Yes"]
[null,null,null,null,"","Yes"]
[null,null,null,null,"","Yes"]
[null,null,null,null,"","Yes"]
[null,null,null,null,"","Yes"]
[null,null,null,null,"","Yes"]
[null,null,null,null,"","Yes"]
[null,null,null,null,"","Yes"]
[null,null,null,null,"","Yes"]
[null,null,null,null,"","Yes"]
[null,null,null,null,"","Yes"]
[null,null,null,null,"","Yes"]
[null,null,null,null,"","Yes"]
[null,null,null,null,"","Yes"]
[null,null,null,null,"","Yes"]
[null,null,null,null,{"$f":"LEFT(RIGHT(B1539,6),6)","v":""},{"$f":"IF(COUNTIF($A:$A,$E1539)>0,\"Yes\", \"No\")","v":"Yes"}]
[null,null,null,null,"","Yes"]
[null,null,null,null,"","Yes"]
[null,null,null,null,"","Yes"]
[null,null,null,null,"","Yes"]
[null,null,null,null,"","Yes"]
[null,null,null,null,"","Yes"]
[null,null,null,null,"","Yes"]
[null,null,null,null,"","Yes"]
[null,null,null,null,"","Yes"]
[null,null,null,null,"","Yes"]
[null,null,null,null,"","Yes"]
[null,null,null,null,"","Yes"]
[null,null,null,null,"","Yes"]
[null,null,null,null,"","Yes"]
[null,null,null,null,"","Yes"]
[null,null,null,null,"","Yes"]
[null,null,null,null,"","Yes"]
[null,null,null,null,"","Yes"]
[null,null,null,null,"","Yes"]
[null,null,null,null,"","Yes"]
[null,null,null,null,"","Yes"]
[null,null,null,null,"","Yes"]
[null,null,null,null,"","Yes"]
[null,null,null,null,"","Yes"]
[null,null,null,null,"","Yes"]
[null,null,null,null,"","Yes"]
[null,null,null,null,"","Yes"]
[null,null,null,null,"","Yes"]
[null,null,null,null,"","Yes"]
[null,null,null,null,"","Yes"]
[null,null,null,null,"","Yes"]
[null,null,null,null,"","Yes"]
[null,null,null,null,"","Yes"]
[null,null,null,null,"","Yes"]
[null,null,null,null,"","Yes"]
[null,null,null,null,"","Yes"]
[null,null,null,null,"","Yes"]
[null,null,null,null,"","Yes"]
[null,null,null,null,"","Yes"]
[null,null,null,null,"","Yes"]
[null,null,null,null,"","Yes"]
[null,null,null,null,"","Yes"]
[null,null,null,null,"","Yes"]
[null,null,null,null,"","Yes"]
[null,null,null,null,"","Yes"]
[null,null,null,null,"","Yes"]
[null,null,null,null,"","Yes"]
[null,null,null,null,"","Yes"]
[null,null,null,null,"","Yes"]
[null,null,null,null,"","Yes"]
[null,null,null,null,"","Yes"]
[null,null,null,null,"","Yes"]
[null,null,null,null,"","Yes"]
[null,null,null,null,"","Yes"]
[null,null,null,null,"","Yes"]
[null,null,null,null,"","Yes"]
[null,null,null,null,"","Yes"]
[null,null,null,null,"","Yes"]
[null,null,null,null,"","Yes"]
[null,null,null,null,"","Yes"]
[null,null,null,null,"","Yes"]
[null,null,null,null,"","Yes"]
[null,null,null,null,"","Yes"]
[null,null,null,null,{"$f":"LEFT(RIGHT(B1603,6),6)","v":""},{"$f":"IF(COUNTIF($A:$A,$E1603)>0,\"Yes\", \"No\")","v":"Yes"}]
[null,null,null,null,"","Yes"]
[null,null,null,null,"","Yes"]
[null,null,null,null,"","Yes"]
[null,null,null,null,"","Yes"]
[null,null,null,null,"","Yes"]
[null,null,null,null,"","Yes"]
[null,null,null,null,"","Yes"]
[null,null,null,null,"","Yes"]
[null,null,null,null,"","Yes"]
[null,null,null,null,"","Yes"]
[null,null,null,null,"","Yes"]
[null,null,null,null,"","Yes"]
[null,null,null,null,"","Yes"]
[null,null,null,null,"","Yes"]
[null,null,null,null,"","Yes"]
[null,null,null,null,"","Yes"]
[null,null,null,null,"","Yes"]
[null,null,null,null,"","Yes"]
[null,null,null,null,"","Yes"]
[null,null,null,null,"","Yes"]
[null,null,null,null,"","Yes"]
[null,null,null,null,"","Yes"]
[null,null,null,null,"","Yes"]
[null,null,null,null,"","Yes"]
[null,null,null,null,"","Yes"]
[null,null,null,null,"","Yes"]
[null,null,null,null,"","Yes"]
[null,null,null,null,"","Yes"]
[null,null,null,null,"","Yes"]
[null,null,null,null,"","Yes"]
[null,null,null,null,"","Yes"]
[null,null,null,null,"","Yes"]
[null,null,null,null,"","Yes"]
[null,null,null,null,"","Yes"]
[null,null,null,null,"","Yes"]
[null,null,null,null,"","Yes"]
[null,null,null,null,"","Yes"]
[null,null,null,null,"","Yes"]
[null,null,null,null,"","Yes"]
[null,null,null,null,"","Yes"]
[null,null,null,null,"","Yes"]
[null,null,null,null,"","Yes"]
[null,null,null,null,"","Yes"]
[null,null,null,null,"","Yes"]
[null,null,null,null,"","Yes"]
[null,null,null,null,"","Yes"]
[null,null,null,null,"","Yes"]
[null,null,null,null,"","Yes"]
[null,null,null,null,"","Yes"]
[null,null,null,null,"","Yes"]
[null,null,null,null,"","Yes"]
[null,null,null,null,"","Yes"]
[null,null,null,null,"","Yes"]
[null,null,null,null,"","Yes"]
[null,null,null,null,"","Yes"]
[null,null,null,null,"","Yes"]
[null,null,null,null,"","Yes"]
[null,null,null,null,"","Yes"]
[null,null,null,null,"","Yes"]
[null,null,null,null,"","Yes"]
[null,null,null,null,"","Yes"]
[null,null,null,null,"","Yes"]
[null,null,null,null,"","Yes"]
[null,null,null,null,{"$f":"LEFT(RIGHT(B1667,6),6)","v":""},{"$f":"IF(COUNTIF($A:$A,$E1667)>0,\"Yes\", \"No\")","v":"Yes"}]
[null,null,null,null,"","Yes"]
[null,null,null,null,"","Yes"]
[null,null,null,null,"","Yes"]
[null,null,null,null,"","Yes"]
[null,null,null,null,"","Yes"]
[null,null,null,null,"","Yes"]
[null,null,null,null,"","Yes"]
[null,null,null,null,"","Yes"]
[null,null,null,null,"","Yes"]
[null,null,null,null,"","Yes"]
[null,null,null,null,"","Yes"]
[null,null,null,null,"","Yes"]
[null,null,null,null,"","Yes"]
[null,null,null,null,"","Yes"]
[null,null,null,null,"","Yes"]
[null,null,null,null,"","Yes"]
[null,null,null,null,"","Yes"]
[null,null,null,null,"","Yes"]
[null,null,null,null,"","Yes"]
[null,null,null,null,"","Yes"]
[null,null,null,null,"","Yes"]
[null,null,null,null,"","Yes"]
[null,null,null,null,"","Yes"]
[null,null,null,null,"","Yes"]
[null,null,null,null,"","Yes"]
[null,null,null,null,"","Yes"]
[null,null,null,null,"","Yes"]
[null,null,null,null,"","Yes"]
[null,null,null,null,"","Yes"]
[null,null,null,null,"","Yes"]
[null,null,null,null,"","Yes"]
[null,null,null,null,"","Yes"]
[null,null,null,null,"","Yes"]
[null,null,null,null,"","Yes"]
[null,null,null,null,"","Yes"]
[null,null,null,null,"","Yes"]
[null,null,null,null,"","Yes"]
[null,null,null,null,"","Yes"]
[null,null,null,null,"","Yes"]
[null,null,null,null,"","Yes"]
[null,null,null,null,"","Yes"]
[null,null,null,null,"","Yes"]
[null,null,null,null,"","Yes"]
[null,null,null,null,"","Yes"]
[null,null,null,null,"","Yes"]
[null,null,null,null,"","Yes"]
[null,null,null,null,"","Yes"]
[null,null,null,null,"","Yes"]
[null,null,null,null,"","Yes"]
[null,null,null,null,"","Yes"]
[null,null,null,null,"","Yes"]
[null,null,null,null,"","Yes"]
[null,null,null,null,"","Yes"]
[null,null,null,null,"","Yes"]
[null,null,null,null,"","Yes"]
[null,null,null,null,"","Yes"]
[null,null,null,null,"","Yes"]
[null,null,null,null,"","Yes"]
[null,null,null,null,"","Yes"]
[null,null,null,null,"","Yes"]
[null,null,null,null,"","Yes"]
[null,null,null,null,"","Yes"]
[null,null,null,null,"","Yes"]
[null,null,null,null,{"$f":"LEFT(RIGHT(B1731,6),6)","v":""},{"$f":"IF(COUNTIF($A:$A,$E1731)>0,\"Yes\", \"No\")","v":"Yes"}]
[null,null,null,null,"","Yes"]
[null,null,null,null,"","Yes"]
[null,null,null,null,"","Yes"]
[null,null,null,null,"","Yes"]
[null,null,null,null,"","Yes"]
[null,null,null,null,"","Yes"]
[null,null,null,null,"","Yes"]
[null,null,null,null,"","Yes"]
[null,null,null,null,"","Yes"]
[null,null,null,null,"","Yes"]
[null,null,null,null,"","Yes"]
[null,null,null,null,"","Yes"]
[null,null,null,null,"","Yes"]
[null,null,null,null,"","Yes"]
[null,null,null,null,"","Yes"]
[null,null,null,null,"","Yes"]
[null,null,null,null,"","Yes"]
[null,null,null,null,"","Yes"]
[null,null,null,null,"","Yes"]
[null,null,null,null,"","Yes"]
[null,null,null,null,"","Yes"]
[null,null,null,null,"","Yes"]
[null,null,null,null,"","Yes"]
[null,null,null,null,"","Yes"]
[null,null,null,null,"","Yes"]
[null,null,null,null,"","Yes"]
[null,null,null,null,"","Yes"]
[null,null,null,null,"","Yes"]
[null,null,null,null,"","Yes"]
[null,null,null,null,"","Yes"]
[null,null,null,null,"","Yes"]
[null,null,null,null,"","Yes"]
[null,null,null,null,"","Yes"]
[null,null,null,null,"","Yes"]
[null,null,null,null,"","Yes"]
[null,null,null,null,"","Yes"]
[null,null,null,null,"","Yes"]
[null,null,null,null,"","Yes"]
[null,null,null,null,"","Yes"]
[null,null,null,null,"","Yes"]
[null,null,null,null,"","Yes"]
[null,null,null,null,"","Yes"]
[null,null,null,null,"","Yes"]
[null,null,null,null,"","Yes"]
[null,null,null,null,"","Yes"]
[null,null,null,null,"","Yes"]
[null,null,null,null,"","Yes"]
[null,null,null,null,"","Yes"]
[null,null,null,null,"","Yes"]
[null,null,null,null,"","Yes"]
[null,null,null,null,"","Yes"]
[null,null,null,null,"","Yes"]
[null,null,null,null,"","Yes"]
[null,null,null,null,"","Yes"]
[null,null,null,null,"","Yes"]
[null,null,null,null,"","Yes"]
[null,null,null,null,"","Yes"]
[null,null,null,null,"","Yes"]
[null,null,null,null,"","Yes"]
[null,null,null,null,"","Yes"]
[null,null,null,null,"","Yes"]
[null,null,null,null,"","Yes"]
[null,null,null,null,"","Yes"]
[null,null,null,null,{"$f":"LEFT(RIGHT(B1795,6),6)","v":""},{"$f":"IF(COUNTIF($A:$A,$E1795)>0,\"Yes\", \"No\")","v":"Yes"}]
[null,null,null,null,"","Yes"]
[null,null,null,null,"","Yes"]
[null,null,null,null,"","Yes"]
[null,null,null,null,"","Yes"]
[null,null,null,null,"","Yes"]
[null,null,null,null,"","Yes"]
[null,null,null,null,"","Yes"]
[null,null,null,null,"","Yes"]
[null,null,null,null,"","Yes"]
[null,null,null,null,"","Yes"]
[null,null,null,null,"","Yes"]
[null,null,null,null,"","Yes"]
[null,null,null,null,"","Yes"]
[null,null,null,null,"","Yes"]
[null,null,null,null,"","Yes"]
[null,null,null,null,"","Yes"]
[null,null,null,null,"","Yes"]
[null,null,null,null,"","Yes"]
[null,null,null,null,"","Yes"]
[null,null,null,null,"","Yes"]
[null,null,null,null,"","Yes"]
[null,null,null,null,"","Yes"]
[null,null,null,null,"","Yes"]
[null,null,null,null,"","Yes"]
[null,null,null,null,"","Yes"]
[null,null,null,null,"","Yes"]
[null,null,null,null,"","Yes"]
[null,null,null,null,"","Yes"]
[null,null,null,null,"","Yes"]
[null,null,null,null,"","Yes"]
[null,null,null,null,"","Yes"]
[null,null,null,null,"","Yes"]
[null,null,null,null,"","Yes"]
[null,null,null,null,"","Yes"]
[null,null,null,null,"","Yes"]
[null,null,null,null,"","Yes"]
[null,null,null,null,"","Yes"]
[null,null,null,null,"","Yes"]
[null,null,null,null,"","Yes"]
[null,null,null,null,"","Yes"]
[null,null,null,null,"","Yes"]
[null,null,null,null,"","Yes"]
[null,null,null,null,"","Yes"]
[null,null,null,null,"","Yes"]
[null,null,null,null,"","Yes"]
[null,null,null,null,"","Yes"]
[null,null,null,null,"","Yes"]
[null,null,null,null,"","Yes"]
[null,null,null,null,"","Yes"]
[null,null,null,null,"","Yes"]
[null,null,null,null,"","Yes"]
[null,null,null,null,"","Yes"]
[null,null,null,null,"","Yes"]
[null,null,null,null,"","Yes"]
[null,null,null,null,"","Yes"]
[null,null,null,null,"","Yes"]
[null,null,null,null,"","Yes"]
[null,null,null,null,"","Yes"]
[null,null,null,null,"","Yes"]
[null,null,null,null,"","Yes"]
[null,null,null,null,"","Yes"]
[null,null,null,null,"","Yes"]
[null,null,null,null,"","Yes"]
[null,null,null,null,{"$f":"LEFT(RIGHT(B1859,6),6)","v":""},{"$f":"IF(COUNTIF($A:$A,$E1859)>0,\"Yes\", \"No\")","v":"Yes"}]
[null,null,null,null,"","Yes"]
[null,null,null,null,"","Yes"]
[null,null,null,null,"","Yes"]
[null,null,null,null,"","Yes"]
[null,null,null,null,"","Yes"]
[null,null,null,null,"","Yes"]
[null,null,null,null,"","Yes"]
[null,null,null,null,"","Yes"]
[null,null,null,null,"","Yes"]
[null,null,null,null,"","Yes"]
[null,null,null,null,"","Yes"]
[null,null,null,null,"","Yes"]
[null,null,null,null,"","Yes"]
[null,null,null,null,"","Yes"]
[null,null,null,null,"","Yes"]
[null,null,null,null,"","Yes"]
[null,null,null,null,"","Yes"]
[null,null,null,null,"","Yes"]
[null,null,null,null,"","Yes"]
[null,null,null,null,"","Yes"]
[null,null,null,null,"","Yes"]
[null,null,null,null,"","Yes"]
[null,null,null,null,"","Yes"]
[null,null,null,null,"","Yes"]
[null,null,null,null,"","Yes"]
[null,null,null,null,"","Yes"]
[null,null,null,null,"","Yes"]
[null,null,null,null,"","Yes"]
[null,null,null,null,"","Yes"]
[null,null,null,null,"","Yes"]
[null,null,null,null,"","Yes"]
[null,null,null,null,"","Yes"]
[null,null,null,null,"","Yes"]
[null,null,null,null,"","Yes"]
[null,null,null,null,"","Yes"]
[null,null,null,null,"","Yes"]
[null,null,null,null,"","Yes"]
[null,null,null,null,"","Yes"]
[null,null,null,null,"","Yes"]
[null,null,null,null,"","Yes"]
[null,null,null,null,"","Yes"]
[null,null,null,null,"","Yes"]
[null,null,null,null,"","Yes"]
[null,null,null,null,"","Yes"]
[null,null,null,null,"","Yes"]
[null,null,null,null,"","Yes"]
[null,null,null,null,"","Yes"]
[null,null,null,null,"","Yes"]
[null,null,null,null,"","Yes"]
[null,null,null,null,"","Yes"]
[null,null,null,null,"","Yes"]
[null,null,null,null,"","Yes"]
[null,null,null,null,"","Yes"]
[null,null,null,null,"","Yes"]
[null,null,null,null,"","Yes"]
[null,null,null,null,"","Yes"]
[null,null,null,null,"","Yes"]
[null,null,null,null,"","Yes"]
[null,null,null,null,"","Yes"]
[null,null,null,null,"","Yes"]
[null,null,null,null,"","Yes"]
[null,null,null,null,"","Yes"]
[null,null,null,null,"","Yes"]
[null,null,null,null,{"$f":"LEFT(RIGHT(B1923,6),6)","v":""},{"$f":"IF(COUNTIF($A:$A,$E1923)>0,\"Yes\", \"No\")","v":"Yes"}]
[null,null,null,null,"","Yes"]
[null,null,null,null,"","Yes"]
[null,null,null,null,"","Yes"]
[null,null,null,null,"","Yes"]
[null,null,null,null,"","Yes"]
[null,null,null,null,"","Yes"]
[null,null,null,null,"","Yes"]
[null,null,null,null,"","Yes"]
[null,null,null,null,"","Yes"]
[null,null,null,null,"","Yes"]
[null,null,null,null,"","Yes"]
[null,null,null,null,"","Yes"]
[null,null,null,null,"","Yes"]
[null,null,null,null,"","Yes"]
[null,null,null,null,"","Yes"]
[null,null,null,null,"","Yes"]
[null,null,null,null,"","Yes"]
[null,null,null,null,"","Yes"]
[null,null,null,null,"","Yes"]
[null,null,null,null,"","Yes"]
[null,null,null,null,"","Yes"]
[null,null,null,null,"","Yes"]
[null,null,null,null,"","Yes"]
[null,null,null,null,"","Yes"]
[null,null,null,null,"","Yes"]
[null,null,null,null,"","Yes"]
[null,null,null,null,"","Yes"]
[null,null,null,null,"","Yes"]
[null,null,null,null,"","Yes"]
[null,null,null,null,"","Yes"]
[null,null,null,null,"","Yes"]
[null,null,null,null,"","Yes"]
[null,null,null,null,"","Yes"]
[null,null,null,null,"","Yes"]
[null,null,null,null,"","Yes"]
[null,null,null,null,"","Yes"]
[null,null,null,null,"","Yes"]
[null,null,null,null,"","Yes"]
[null,null,null,null,"","Yes"]
[null,null,null,null,"","Yes"]
[null,null,null,null,"","Yes"]
[null,null,null,null,"","Yes"]
[null,null,null,null,"","Yes"]
[null,null,null,null,"","Yes"]
[null,null,null,null,"","Yes"]
[null,null,null,null,"","Yes"]
[null,null,null,null,"","Yes"]
[null,null,null,null,"","Yes"]
[null,null,null,null,"","Yes"]
[null,null,null,null,"","Yes"]
[null,null,null,null,"","Yes"]
[null,null,null,null,"","Yes"]
[null,null,null,null,"","Yes"]
[null,null,null,null,"","Yes"]
[null,null,null,null,"","Yes"]
[null,null,null,null,"","Yes"]
[null,null,null,null,"","Yes"]
[null,null,null,null,"","Yes"]
[null,null,null,null,"","Yes"]
[null,null,null,null,"","Yes"]
[null,null,null,null,"","Yes"]
[null,null,null,null,"","Yes"]
[null,null,null,null,"","Yes"]
[null,null,null,null,{"$f":"LEFT(RIGHT(B1987,6),6)","v":""},{"$f":"IF(COUNTIF($A:$A,$E1987)>0,\"Yes\", \"No\")","v":"Yes"}]
[null,null,null,null,"","Yes"]
[null,null,null,null,"","Yes"]
[null,null,null,null,"","Yes"]
[null,null,null,null,"","Yes"]
[null,null,null,null,"","Yes"]
[null,null,null,null,"","Yes"]
[null,null,null,null,"","Yes"]
[null,null,null,null,"","Yes"]
[null,null,null,null,"","Yes"]
[null,null,null,null,"","Yes"]
[null,null,null,null,"","Yes"]
[null,null,null,null,"","Yes"]
[null,null,null,null,"","Yes"]
[null,null,null,null,"","Yes"]
[null,null,null,null,"","Yes"]
[null,null,null,null,"","Yes"]
[null,null,null,null,"","Yes"]
[null,null,null,null,"","Yes"]
[null,null,null,null,"","Yes"]
[null,null,null,null,"","Yes"]
[null,null,null,null,"","Yes"]
[null,null,null,null,"","Yes"]
[null,null,null,null,"","Yes"]
[null,null,null,null,"","Yes"]
[null,null,null,null,"","Yes"]
[null,null,null,null,"","Yes"]
[null,null,null,null,"","Yes"]
[null,null,null,null,"","Yes"]
[null,null,null,null,"","Yes"]
[null,null,null,null,"","Yes"]
[null,null,null,null,"","Yes"]
[null,null,null,null,"","Yes"]
[null,null,null,null,"","Yes"]
[null,null,null,null,"","Yes"]
[null,null,null,null,"","Yes"]
[null,null,null,null,"","Yes"]
[null,null,null,null,"","Yes"]
[null,null,null,null,"","Yes"]
[null,null,null,null,"","Yes"]
[null,null,null,null,"","Yes"]
[null,null,null,null,"","Yes"]
[null,null,null,null,"","Yes"]
[null,null,null,null,"","Yes"]
[null,null,null,null,"","Yes"]
[null,null,null,null,"","Yes"]
[null,null,null,null,"","Yes"]
[null,null,null,null,"","Yes"]
[null,null,null,null,"","Yes"]
[null,null,null,null,"","Yes"]
[null,null,null,null,"","Yes"]
[null,null,null,null,"","Yes"]
[null,null,null,null,"","Yes"]
[null,null,null,null,"","Yes"]
[null,null,null,null,"","Yes"]
[null,null,null,null,"","Yes"]
[null,null,null,null,"","Yes"]
[null,null,null,null,"","Yes"]
[null,null,null,null,"","Yes"]
[null,null,null,null,"","Yes"]
[null,null,null,null,"","Yes"]
[null,null,null,null,"","Yes"]
[null,null,null,null,"","Yes"]
[null,null,null,null,"","Yes"]
[null,null,null,null,{"$f":"LEFT(RIGHT(B2051,6),6)","v":""},{"$f":"IF(COUNTIF($A:$A,$E2051)>0,\"Yes\", \"No\")","v":"Yes"}]
[null,null,null,null,"","Yes"]
[null,null,null,null,"","Yes"]
[null,null,null,null,"","Yes"]
[null,null,null,null,"","Yes"]
[null,null,null,null,"","Yes"]
[null,null,null,null,"","Yes"]
[null,null,null,null,"","Yes"]
[null,null,null,null,"","Yes"]
[null,null,null,null,"","Yes"]
[null,null,null,null,"","Yes"]
[null,null,null,null,"","Yes"]
[null,null,null,null,"","Yes"]
[null,null,null,null,"","Yes"]
[null,null,null,null,"","Yes"]
[null,null,null,null,"","Yes"]
[null,null,null,null,"","Yes"]
[null,null,null,null,"","Yes"]
[null,null,null,null,"","Yes"]
[null,null,null,null,"","Yes"]
[null,null,null,null,"","Yes"]
[null,null,null,null,"","Yes"]
[null,null,null,null,"","Yes"]
[null,null,null,null,"","Yes"]
[null,null,null,null,"","Yes"]
[null,null,null,null,"","Yes"]
[null,null,null,null,"","Yes"]
[null,null,null,null,"","Yes"]
[null,null,null,null,"","Yes"]
[null,null,null,null,"","Yes"]
[null,null,null,null,"","Yes"]
[null,null,null,null,"","Yes"]
[null,null,null,null,"","Yes"]
[null,null,null,null,"","Yes"]
[null,null,null,null,"","Yes"]
[null,null,null,null,"","Yes"]
[null,null,null,null,"","Yes"]
[null,null,null,null,"","Yes"]
[null,null,null,null,"","Yes"]
[null,null,null,null,"","Yes"]
[null,null,null,null,"","Yes"]
[null,null,null,null,"","Yes"]
[null,null,null,null,"","Yes"]
[null,null,null,null,"","Yes"]
[null,null,null,null,"","Yes"]
[null,null,null,null,"","Yes"]
[null,null,null,null,"","Yes"]
[null,null,null,null,"","Yes"]
[null,null,null,null,"","Yes"]
[null,null,null,null,"","Yes"]
[null,null,null,null,"","Yes"]
[null,null,null,null,"","Yes"]
[null,null,null,null,"","Yes"]
[null,null,null,null,"","Yes"]
[null,null,null,null,"","Yes"]
[null,null,null,null,"","Yes"]
[null,null,null,null,"","Yes"]
[null,null,null,null,"","Yes"]
[null,null,null,null,"","Yes"]
[null,null,null,null,"","Yes"]
[null,null,null,null,"","Yes"]
[null,null,null,null,"","Yes"]
[null,null,null,null,"","Yes"]
[null,null,null,null,"","Yes"]
[null,null,null,null,{"$f":"LEFT(RIGHT(B2115,6),6)","v":""},{"$f":"IF(COUNTIF($A:$A,$E2115)>0,\"Yes\", \"No\")","v":"Yes"}]
[null,null,null,null,"","Yes"]
[null,null,null,null,"","Yes"]
[null,null,null,null,"","Yes"]
[null,null,null,null,"","Yes"]
[null,null,null,null,"","Yes"]
[null,null,null,null,"","Yes"]
[null,null,null,null,"","Yes"]
[null,null,null,null,"","Yes"]
[null,null,null,null,"","Yes"]
[null,null,null,null,"","Yes"]
[null,null,null,null,"","Yes"]
[null,null,null,null,"","Yes"]
[null,null,null,null,"","Yes"]
[null,null,null,null,"","Yes"]
[null,null,null,null,"","Yes"]
[null,null,null,null,"","Yes"]
[null,null,null,null,"","Yes"]
[null,null,null,null,"","Yes"]
[null,null,null,null,"","Yes"]
[null,null,null,null,"","Yes"]
[null,null,null,null,"","Yes"]
[null,null,null,null,"","Yes"]
[null,null,null,null,"","Yes"]
[null,null,null,null,"","Yes"]
[null,null,null,null,"","Yes"]
[null,null,null,null,"","Yes"]
[null,null,null,null,"","Yes"]
[null,null,null,null,"","Yes"]
[null,null,null,null,"","Yes"]
[null,null,null,null,"","Yes"]
[null,null,null,null,"","Yes"]
[null,null,null,null,"","Yes"]
[null,null,null,null,"","Yes"]
[null,null,null,null,"","Yes"]
[null,null,null,null,"","Yes"]
[null,null,null,null,"","Yes"]
[null,null,null,null,"","Yes"]
[null,null,null,null,"","Yes"]
[null,null,null,null,"","Yes"]
[null,null,null,null,"","Yes"]
[null,null,null,null,"","Yes"]
[null,null,null,null,"","Yes"]
[null,null,null,null,"","Yes"]
[null,null,null,null,"","Yes"]
[null,null,null,null,"","Yes"]
[null,null,null,null,"","Yes"]
[null,null,null,null,"","Yes"]
[null,null,null,null,"","Yes"]
[null,null,null,null,"","Yes"]
[null,null,null,null,"","Yes"]
[null,null,null,null,"","Yes"]
[null,null,null,null,"","Yes"]
[null,null,null,null,"","Yes"]
[null,null,null,null,"","Yes"]
[null,null,null,null,"","Yes"]
[null,null,null,null,"","Yes"]
[null,null,null,null,"","Yes"]
[null,null,null,null,"","Yes"]
[null,null,null,null,"","Yes"]
[null,null,null,null,"","Yes"]
[null,null,null,null,"","Yes"]
[null,null,null,null,"","Yes"]
[null,null,null,null,"","Yes"]
[null,null,null,null,{"$f":"LEFT(RIGHT(B2179,6),6)","v":""},{"$f":"IF(COUNTIF($A:$A,$E2179)>0,\"Yes\", \"No\")","v":"Yes"}]
[null,null,null,null,"","Yes"]
[null,null,null,null,"","Yes"]
[null,null,null,null,"","Yes"]
[null,null,null,null,"","Yes"]
[null,null,null,null,"","Yes"]
[null,null,null,null,"","Yes"]
[null,null,null,null,"","Yes"]
[null,null,null,null,"","Yes"]
[null,null,null,null,"","Yes"]
[null,null,null,null,"","Yes"]
[null,null,null,null,"","Yes"]
[null,null,null,null,"","Yes"]
[null,null,null,null,"","Yes"]
[null,null,null,null,"","Yes"]
[null,null,null,null,"","Yes"]
[null,null,null,null,"","Yes"]
[null,null,null,null,"","Yes"]
[null,null,null,null,"","Yes"]
[null,null,null,null,"","Yes"]
[null,null,null,null,"","Yes"]
[null,null,null,null,"","Yes"]
[null,null,null,null,"","Yes"]
[null,null,null,null,"","Yes"]
[null,null,null,null,"","Yes"]
[null,null,null,null,"","Yes"]
[null,null,null,null,"","Yes"]
[null,null,null,null,"","Yes"]
[null,null,null,null,"","Yes"]
[null,null,null,null,"","Yes"]
[null,null,null,null,"","Yes"]
[null,null,null,null,"","Yes"]
[null,null,null,null,"","Yes"]
[null,null,null,null,"","Yes"]
[null,null,null,null,"","Yes"]
[null,null,null,null,"","Yes"]
[null,null,null,null,"","Yes"]
[null,null,null,null,"","Yes"]
[null,null,null,null,"","Yes"]
[null,null,null,null,"","Yes"]
[null,null,null,null,"","Yes"]
[null,null,null,null,"","Yes"]
[null,null,null,null,"","Yes"]
[null,null,null,null,"","Yes"]
[null,null,null,null,"","Yes"]
[null,null,null,null,"","Yes"]
[null,null,null,null,"","Yes"]
[null,null,null,null,"","Yes"]
[null,null,null,null,"","Yes"]
[null,null,null,null,"","Yes"]
[null,null,null,null,"","Yes"]
[null,null,null,null,"","Yes"]
[null,null,null,null,"","Yes"]
[null,null,null,null,"","Yes"]
[null,null,null,null,"","Yes"]
[null,null,null,null,"","Yes"]
[null,null,null,null,"","Yes"]
[null,null,null,null,"","Yes"]
[null,null,null,null,"","Yes"]
[null,null,null,null,"","Yes"]
[null,null,null,null,"","Yes"]
[null,null,null,null,"","Yes"]
[null,null,null,null,"","Yes"]
[null,null,null,null,"","Yes"]
[null,null,null,null,{"$f":"LEFT(RIGHT(B2243,6),6)","v":""},{"$f":"IF(COUNTIF($A:$A,$E2243)>0,\"Yes\", \"No\")","v":"Yes"}]
[null,null,null,null,"","Yes"]
[null,null,null,null,"","Yes"]
[null,null,null,null,"","Yes"]
[null,null,null,null,"","Yes"]
[null,null,null,null,"","Yes"]
[null,null,null,null,"","Yes"]
[null,null,null,null,"","Yes"]
[null,null,null,null,"","Yes"]
[null,null,null,null,"","Yes"]
[null,null,null,null,"","Yes"]
[null,null,null,null,"","Yes"]
[null,null,null,null,"","Yes"]
[null,null,null,null,"","Yes"]
[null,null,null,null,"","Yes"]
[null,null,null,null,"","Yes"]
[null,null,null,null,"","Yes"]
[null,null,null,null,"","Yes"]
[null,null,null,null,"","Yes"]
[null,null,null,null,"","Yes"]
[null,null,null,null,"","Yes"]
[null,null,null,null,"","Yes"]
[null,null,null,null,"","Yes"]
[null,null,null,null,"","Yes"]
[null,null,null,null,"","Yes"]
[null,null,null,null,"","Yes"]
[null,null,null,null,"","Yes"]
[null,null,null,null,"","Yes"]
[null,null,null,null,"","Yes"]
[null,null,null,null,"","Yes"]
[null,null,null,null,"","Yes"]
[null,null,null,null,"","Yes"]
[null,null,null,null,"","Yes"]
[null,null,null,null,"","Yes"]
[null,null,null,null,"","Yes"]
[null,null,null,null,"","Yes"]
[null,null,null,null,"","Yes"]
[null,null,null,null,"","Yes"]
[null,null,null,null,"","Yes"]
[null,null,null,null,"","Yes"]
[null,null,null,null,"","Yes"]
[null,null,null,null,"","Yes"]
[null,null,null,null,"","Yes"]
[null,null,null,null,"","Yes"]
[null,null,null,null,"","Yes"]
[null,null,null,null,"","Yes"]
[null,null,null,null,"","Yes"]
[null,null,null,null,"","Yes"]
[null,null,null,null,"","Yes"]
[null,null,null,null,"","Yes"]
[null,null,null,null,"","Yes"]
[null,null,null,null,"","Yes"]
[null,null,null,null,"","Yes"]
[null,null,null,null,"","Yes"]
[null,null,null,null,"","Yes"]
[null,null,null,null,"","Yes"]
[null,null,null,null,"","Yes"]
[null,null,null,null,"","Yes"]
[null,null,null,null,"","Yes"]
[null,null,null,null,"","Yes"]
[null,null,null,null,"","Yes"]
[null,null,null,null,"","Yes"]
[null,null,null,null,"","Yes"]
[null,null,null,null,"","Yes"]
[null,null,null,null,{"$f":"LEFT(RIGHT(B2307,6),6)","v":""},{"$f":"IF(COUNTIF($A:$A,$E2307)>0,\"Yes\", \"No\")","v":"Yes"}]
[null,null,null,null,"","Yes"]
[null,null,null,null,"","Yes"]
[null,null,null,null,"","Yes"]
[null,null,null,null,"","Yes"]
[null,null,null,null,"","Yes"]
[null,null,null,null,"","Yes"]
[null,null,null,null,"","Yes"]
[null,null,null,null,"","Yes"]
[null,null,null,null,"","Yes"]
[null,null,null,null,"","Yes"]
[null,null,null,null,"","Yes"]
[null,null,null,null,"","Yes"]
[null,null,null,null,"","Yes"]
[null,null,null,null,"","Yes"]
[null,null,null,null,"","Yes"]
[null,null,null,null,"","Yes"]
[null,null,null,null,"","Yes"]
[null,null,null,null,"","Yes"]
[null,null,null,null,"","Yes"]
[null,null,null,null,"","Yes"]
[null,null,null,null,"","Yes"]
[null,null,null,null,"","Yes"]
[null,null,null,null,"","Yes"]
[null,null,null,null,"","Yes"]
[null,null,null,null,"","Yes"]
[null,null,null,null,"","Yes"]
[null,null,null,null,"","Yes"]
[null,null,null,null,"","Yes"]
[null,null,null,null,"","Yes"]
[null,null,null,null,"","Yes"]
[null,null,null,null,"","Yes"]
[null,null,null,null,"","Yes"]
[null,null,null,null,"","Yes"]
[null,null,null,null,"","Yes"]
[null,null,null,null,"","Yes"]
[null,null,null,null,"","Yes"]
[null,null,null,null,"","Yes"]
[null,null,null,null,"","Yes"]
[null,null,null,null,"","Yes"]
[null,null,null,null,"","Yes"]
[null,null,null,null,"","Yes"]
[null,null,null,null,"","Yes"]
[null,null,null,null,"","Yes"]
[null,null,null,null,"","Yes"]
[null,null,null,null,"","Yes"]
[null,null,null,null,"","Yes"]
[null,null,null,null,"","Yes"]
[null,null,null,null,"","Yes"]
[null,null,null,null,"","Yes"]
[null,null,null,null,"","Yes"]
[null,null,null,null,"","Yes"]
[null,null,null,null,"","Yes"]
[null,null,null,null,"","Yes"]
[null,null,null,null,"","Yes"]
[null,null,null,null,"","Yes"]
[null,null,null,null,"","Yes"]
[null,null,null,null,"","Yes"]
[null,null,null,null,"","Yes"]
[null,null,null,null,"","Yes"]
[null,null,null,null,"","Yes"]
[null,null,null,null,"","Yes"]
[null,null,null,null,"","Yes"]
[null,null,null,null,"","Yes"]
[null,null,null,null,{"$f":"LEFT(RIGHT(B2371,6),6)","v":""},{"$f":"IF(COUNTIF($A:$A,$E2371)>0,\"Yes\", \"No\")","v":"Yes"}]
[null,null,null,null,"","Yes"]
[null,null,null,null,"","Yes"]
[null,null,null,null,"","Yes"]
[null,null,null,null,"","Yes"]
[null,null,null,null,"","Yes"]
[null,null,null,null,"","Yes"]
[null,null,null,null,"","Yes"]
[null,null,null,null,"","Yes"]
[null,null,null,null,"","Yes"]
[null,null,null,null,"","Yes"]
[null,null,null,null,"","Yes"]
[null,null,null,null,"","Yes"]
[null,null,null,null,"","Yes"]
[null,null,null,null,"","Yes"]
[null,null,null,null,"","Yes"]
[null,null,null,null,"","Yes"]
[null,null,null,null,"","Yes"]
[null,null,null,null,"","Yes"]
[null,null,null,null,"","Yes"]
[null,null,null,null,"","Yes"]
[null,null,null,null,"","Yes"]
[null,null,null,null,"","Yes"]
[null,null,null,null,"","Yes"]
[null,null,null,null,"","Yes"]
[null,null,null,null,"","Yes"]
[null,null,null,null,"","Yes"]
[null,null,null,null,"","Yes"]
[null,null,null,null,"","Yes"]
[null,null,null,null,"","Yes"]
[null,null,null,null,"","Yes"]
[null,null,null,null,"","Yes"]
[null,null,null,null,"","Yes"]
[null,null,null,null,"","Yes"]
[null,null,null,null,"","Yes"]
[null,null,null,null,"","Yes"]
[null,null,null,null,"","Yes"]
[null,null,null,null,"","Yes"]
[null,null,null,null,"","Yes"]
[null,null,null,null,"","Yes"]
[null,null,null,null,"","Yes"]
[null,null,null,null,"","Yes"]
[null,null,null,null,"","Yes"]
[null,null,null,null,"","Yes"]
[null,null,null,null,"","Yes"]
[null,null,null,null,"","Yes"]
[null,null,null,null,"","Yes"]
[null,null,null,null,"","Yes"]
[null,null,null,null,"","Yes"]
[null,null,null,null,"","Yes"]
[null,null,null,null,"","Yes"]
[null,null,null,null,"","Yes"]
[null,null,null,null,"","Yes"]
[null,null,null,null,"","Yes"]
[null,null,null,null,"","Yes"]
[null,null,null,null,"","Yes"]
[null,null,null,null,"","Yes"]
[null,null,null,null,"","Yes"]
[null,null,null,null,"","Yes"]
[null,null,null,null,"","Yes"]
[null,null,null,null,"","Yes"]
[null,null,null,null,"","Yes"]
[null,null,null,null,"","Yes"]
[null,null,null,null,"","Yes"]
[null,null,null,null,{"$f":"LEFT(RIGHT(B2435,6),6)","v":""},{"$f":"IF(COUNTIF($A:$A,$E2435)>0,\"Yes\", \"No\")","v":"Yes"}]
[null,null,null,null,"","Yes"]
[null,null,null,null,"","Yes"]
[null,null,null,null,"","Yes"]
[null,null,null,null,"","Yes"]
[null,null,null,null,"","Yes"]
[null,null,null,null,"","Yes"]
[null,null,null,null,"","Yes"]
[null,null,null,null,"","Yes"]
[null,null,null,null,"","Yes"]
[null,null,null,null,"","Yes"]
[null,null,null,null,"","Yes"]
[null,null,null,null,"","Yes"]
[null,null,null,null,"","Yes"]
[null,null,null,null,"","Yes"]
[null,null,null,null,"","Yes"]
[null,null,null,null,"","Yes"]
[null,null,null,null,"","Yes"]
[null,null,null,null,"","Yes"]
[null,null,null,null,"","Yes"]
[null,null,null,null,"","Yes"]
[null,null,null,null,"","Yes"]
[null,null,null,null,"","Yes"]
[null,null,null,null,"","Yes"]
[null,null,null,null,"","Yes"]
[null,null,null,null,"","Yes"]
[null,null,null,null,"","Yes"]
[null,null,null,null,"","Yes"]
[null,null,null,null,"","Yes"]
[null,null,null,null,"","Yes"]
[null,null,null,null,"","Yes"]
[null,null,null,null,"","Yes"]
[null,null,null,null,"","Yes"]
[null,null,null,null,"","Yes"]
[null,null,null,null,"","Yes"]
[null,null,null,null,"","Yes"]
[null,null,null,null,"","Yes"]
[null,null,null,null,"","Yes"]
[null,null,null,null,"","Yes"]
[null,null,null,null,"","Yes"]
[null,null,null,null,"","Yes"]
[null,null,null,null,"","Yes"]
[null,null,null,null,"","Yes"]
[null,null,null,null,"","Yes"]
[null,null,null,null,"","Yes"]
[null,null,null,null,"","Yes"]
[null,null,null,null,"","Yes"]
[null,null,null,null,"","Yes"]
[null,null,null,null,"","Yes"]
[null,null,null,null,"","Yes"]
[null,null,null,null,"","Yes"]
[null,null,null,null,"","Yes"]
[null,null,null,null,"","Yes"]
[null,null,null,null,"","Yes"]
[null,null,null,null,"","Yes"]
[null,null,null,null,"","Yes"]
[null,null,null,null,"","Yes"]
[null,null,null,null,"","Yes"]
[null,null,null,null,"","Yes"]
[null,null,null,null,"","Yes"]
[null,null,null,null,"","Yes"]
[null,null,null,null,"","Yes"]
[null,null,null,null,"","Yes"]
[null,null,null,null,"","Yes"]
[null,null,null,null,{"$f":"LEFT(RIGHT(B2499,6),6)","v":""},{"$f":"IF(COUNTIF($A:$A,$E2499)>0,\"Yes\", \"No\")","v":"Yes"}]
[null,null,null,null,"","Yes"]
[null,null,null,null,"","Yes"]
[null,null,null,null,"","Yes"]
[null,null,null,null,"","Yes"]
[null,null,null,null,"","Yes"]
[null,null,null,null,"","Yes"]
[null,null,null,null,"","Yes"]
[null,null,null,null,"","Yes"]
[null,null,null,null,"","Yes"]
[null,null,null,null,"","Yes"]
[null,null,null,null,"","Yes"]
[null,null,null,null,"","Yes"]
[null,null,null,null,"","Yes"]
[null,null,null,null,"","Yes"]
[null,null,null,null,"","Yes"]
[null,null,null,null,"","Yes"]
[null,null,null,null,"","Yes"]
[null,null,null,null,"","Yes"]
[null,null,null,null,"","Yes"]
[null,null,null,null,"","Yes"]
[null,null,null,null,"","Yes"]
[null,null,null,null,"","Yes"]
[null,null,null,null,"","Yes"]
[null,null,null,null,"","Yes"]
[null,null,null,null,"","Yes"]
[null,null,null,null,"","Yes"]
[null,null,null,null,"","Yes"]
[null,null,null,null,"","Yes"]
[null,null,null,null,"","Yes"]
[null,null,null,null,"","Yes"]
[null,null,null,null,"","Yes"]
[null,null,null,null,"","Yes"]
[null,null,null,null,"","Yes"]
[null,null,null,null,"","Yes"]
[null,null,null,null,"","Yes"]
[null,null,null,null,"","Yes"]
[null,null,null,null,"","Yes"]
[null,null,null,null,"","Yes"]
[null,null,null,null,"","Yes"]
[null,null,null,null,"","Yes"]
[null,null,null,null,"","Yes"]
[null,null,null,null,"","Yes"]
[null,null,null,null,"","Yes"]
[null,null,null,null,"","Yes"]
[null,null,null,null,"","Yes"]
[null,null,null,null,"","Yes"]
[null,null,null,null,"","Yes"]
[null,null,null,null,"","Yes"]
[null,null,null,null,"","Yes"]
[null,null,null,null,"","Yes"]
[null,null,null,null,"","Yes"]
[null,null,null,null,"","Yes"]
[null,null,null,null,"","Yes"]
[null,null,null,null,"","Yes"]
[null,null,null,null,"","Yes"]
[null,null,null,null,"","Yes"]
[null,null,null,null,"","Yes"]
[null,null,null,null,"","Yes"]
[null,null,null,null,"","Yes"]
[null,null,null,null,"","Yes"]
[null,null,null,null,"","Yes"]
[null,null,null,null,"","Yes"]
[null,null,null,null,"","Yes"]
[null,null,null,null,{"$f":"LEFT(RIGHT(B2563,6),6)","v":""},{"$f":"IF(COUNTIF($A:$A,$E2563)>0,\"Yes\", \"No\")","v":"Yes"}]
[null,null,null,null,"","Yes"]
[null,null,null,null,"","Yes"]
[null,null,null,null,"","Yes"]
[null,null,null,null,"","Yes"]
[null,null,null,null,"","Yes"]
[null,null,null,null,"","Yes"]
[null,null,null,null,"","Yes"]
[null,null,null,null,"","Yes"]
[null,null,null,null,"","Yes"]
[null,null,null,null,"","Yes"]
[null,null,null,null,"","Yes"]
[null,null,null,null,"","Yes"]
[null,null,null,null,"","Yes"]
[null,null,null,null,"","Yes"]
[null,null,null,null,"","Yes"]
[null,null,null,null,"","Yes"]
[null,null,null,null,"","Yes"]
[null,null,null,null,"","Yes"]
[null,null,null,null,"","Yes"]
[null,null,null,null,"","Yes"]
[null,null,null,null,"","Yes"]
[null,null,null,null,"","Yes"]
[null,null,null,null,"","Yes"]
[null,null,null,null,"","Yes"]
[null,null,null,null,"","Yes"]
[null,null,null,null,"","Yes"]
[null,null,null,null,"","Yes"]
[null,null,null,null,"","Yes"]
[null,null,null,null,"","Yes"]
[null,null,null,null,"","Yes"]
[null,null,null,null,"","Yes"]
[null,null,null,null,"","Yes"]
[null,null,null,null,"","Yes"]
[null,null,null,null,"","Yes"]
[null,null,null,null,"","Yes"]
[null,null,null,null,"","Yes"]
[null,null,null,null,"","Yes"]
[null,null,null,null,"","Yes"]
[null,null,null,null,"","Yes"]
[null,null,null,null,"","Yes"]
[null,null,null,null,"","Yes"]
[null,null,null,null,"","Yes"]
[null,null,null,null,"","Yes"]
[null,null,null,null,"","Yes"]
[null,null,null,null,"","Yes"]
[null,null,null,null,"","Yes"]
[null,null,null,null,"","Yes"]
[null,null,null,null,"","Yes"]
[null,null,null,null,"","Yes"]
[null,null,null,null,"","Yes"]
[null,null,null,null,"","Yes"]
[null,null,null,null,"","Yes"]
[null,null,null,null,"","Yes"]
[null,null,null,null,"","Yes"]
[null,null,null,null,"","Yes"]
[null,null,null,null,"","Yes"]
[null,null,null,null,"","Yes"]
[null,null,null,null,"","Yes"]
[null,null,null,null,"","Yes"]
[null,null,null,null,"","Yes"]
[null,null,null,null,"","Yes"]
[null,null,null,null,"","Yes"]
[null,null,null,null,"","Yes"]
[null,null,null,null,{"$f":"LEFT(RIGHT(B2627,6),6)","v":""},{"$f":"IF(COUNTIF($A:$A,$E2627)>0,\"Yes\", \"No\")","v":"Yes"}]
[null,null,null,null,"","Yes"]
[null,null,null,null,"","Yes"]
[null,null,null,null,"","Yes"]
[null,null,null,null,"","Yes"]
[null,null,null,null,"","Yes"]
[null,null,null,null,"","Yes"]
[null,null,null,null,"","Yes"]
[null,null,null,null,"","Yes"]
[null,null,null,null,"","Yes"]
[null,null,null,null,"","Yes"]
[null,null,null,null,"","Yes"]
[null,null,null,null,"","Yes"]
[null,null,null,null,"","Yes"]
[null,null,null,null,"","Yes"]
[null,null,null,null,"","Yes"]
[null,null,null,null,"","Yes"]
[null,null,null,null,"","Yes"]
[null,null,null,null,"","Yes"]
[null,null,null,null,"","Yes"]
[null,null,null,null,"","Yes"]
[null,null,null,null,"","Yes"]
[null,null,null,null,"","Yes"]
[null,null,null,null,"","Yes"]
[null,null,null,null,"","Yes"]
[null,null,null,null,"","Yes"]
[null,null,null,null,"","Yes"]
[null,null,null,null,"","Yes"]
[null,null,null,null,"","Yes"]
[null,null,null,null,"","Yes"]
[null,null,null,null,"","Yes"]
[null,null,null,null,"","Yes"]
[null,null,null,null,"","Yes"]
[null,null,null,null,"","Yes"]
[null,null,null,null,"","Yes"]
[null,null,null,null,"","Yes"]
[null,null,null,null,"","Yes"]
[null,null,null,null,"","Yes"]
[null,null,null,null,"","Yes"]
[null,null,null,null,"","Yes"]
[null,null,null,null,"","Yes"]
[null,null,null,null,"","Yes"]
[null,null,null,null,"","Yes"]
[null,null,null,null,"","Yes"]
[null,null,null,null,"","Yes"]
[null,null,null,null,"","Yes"]
[null,null,null,null,"","Yes"]
[null,null,null,null,"","Yes"]
[null,null,null,null,"","Yes"]
[null,null,null,null,"","Yes"]
[null,null,null,null,"","Yes"]
[null,null,null,null,"","Yes"]
[null,null,null,null,"","Yes"]
[null,null,null,null,"","Yes"]
[null,null,null,null,"","Yes"]
[null,null,null,null,"","Yes"]
[null,null,null,null,"","Yes"]
[null,null,null,null,"","Yes"]
[null,null,null,null,"","Yes"]
[null,null,null,null,"","Yes"]
[null,null,null,null,"","Yes"]
[null,null,null,null,"","Yes"]
[null,null,null,null,"","Yes"]
[null,null,null,null,"","Yes"]
[null,null,null,null,{"$f":"LEFT(RIGHT(B2691,6),6)","v":""},{"$f":"IF(COUNTIF($A:$A,$E2691)>0,\"Yes\", \"No\")","v":"Yes"}]
[null,null,null,null,"","Yes"]
[null,null,null,null,"","Yes"]
[null,null,null,null,"","Yes"]
[null,null,null,null,"","Yes"]
[null,null,null,null,"","Yes"]
[null,null,null,null,"","Yes"]
[null,null,null,null,"","Yes"]
[null,null,null,null,"","Yes"]
[null,null,null,null,"","Yes"]
[null,null,null,null,"","Yes"]
[null,null,null,null,"","Yes"]
[null,null,null,null,"","Yes"]
[null,null,null,null,"","Yes"]
[null,null,null,null,"","Yes"]
[null,null,null,null,"","Yes"]
[null,null,null,null,"","Yes"]
[null,null,null,null,"","Yes"]
[null,null,null,null,"","Yes"]
[null,null,null,null,"","Yes"]
[null,null,null,null,"","Yes"]
[null,null,null,null,"","Yes"]
[null,null,null,null,"","Yes"]
[null,null,null,null,"","Yes"]
[null,null,null,null,"","Yes"]
[null,null,null,null,"","Yes"]
[null,null,null,null,"","Yes"]
[null,null,null,null,"","Yes"]
[null,null,null,null,"","Yes"]
[null,null,null,null,"","Yes"]
[null,null,null,null,"","Yes"]
[null,null,null,null,"","Yes"]
[null,null,null,null,"","Yes"]
[null,null,null,null,"","Yes"]
[null,null,null,null,"","Yes"]
[null,null,null,null,"","Yes"]
[null,null,null,null,"","Yes"]
[null,null,null,null,"","Yes"]
[null,null,null,null,"","Yes"]
[null,null,null,null,"","Yes"]
[null,null,null,null,"","Yes"]
[null,null,null,null,"","Yes"]
[null,null,null,null,"","Yes"]
[null,null,null,null,"","Yes"]
[null,null,null,null,"","Yes"]
[null,null,null,null,"","Yes"]
[null,null,null,null,"","Yes"]
[null,null,null,null,"","Yes"]
[null,null,null,null,"","Yes"]
[null,null,null,null,"","Yes"]
[null,null,null,null,"","Yes"]
[null,null,null,null,"","Yes"]
[null,null,null,null,"","Yes"]
[null,null,null,null,"","Yes"]
[null,null,null,null,"","Yes"]
[null,null,null,null,"","Yes"]
[null,null,null,null,"","Yes"]
[null,null,null,null,"","Yes"]
[null,null,null,null,"","Yes"]
[null,null,null,null,"","Yes"]
[null,null,null,null,"","Yes"]
[null,null,null,null,"","Yes"]
[null,null,null,null,"","Yes"]
[null,null,null,null,"","Yes"]
[null,null,null,null,{"$f":"LEFT(RIGHT(B2755,6),6)","v":""},{"$f":"IF(COUNTIF($A:$A,$E2755)>0,\"Yes\", \"No\")","v":"Yes"}]
[null,null,null,null,"","Yes"]
[null,null,null,null,"","Yes"]
[null,null,null,null,"","Yes"]
[null,null,null,null,"","Yes"]
[null,null,null,null,"","Yes"]
[null,null,null,null,"","Yes"]
[null,null,null,null,"","Yes"]
[null,null,null,null,"","Yes"]
[null,null,null,null,"","Yes"]
[null,null,null,null,"","Yes"]
[null,null,null,null,"","Yes"]
[null,null,null,null,"","Yes"]
[null,null,null,null,"","Yes"]
[null,null,null,null,"","Yes"]
[null,null,null,null,"","Yes"]
[null,null,null,null,"","Yes"]
[null,null,null,null,"","Yes"]
[null,null,null,null,"","Yes"]
[null,null,null,null,"","Yes"]
[null,null,null,null,"","Yes"]
[null,null,null,null,"","Yes"]
[null,null,null,null,"","Yes"]
[null,null,null,null,"","Yes"]
[null,null,null,null,"","Yes"]
[null,null,null,null,"","Yes"]
[null,null,null,null,"","Yes"]
[null,null,null,null,"","Yes"]
[null,null,null,null,"","Yes"]
[null,null,null,null,"","Yes"]
[null,null,null,null,"","Yes"]
[null,null,null,null,"","Yes"]
[null,null,null,null,"","Yes"]
[null,null,null,null,"","Yes"]
[null,null,null,null,"","Yes"]
[null,null,null,null,"","Yes"]
[null,null,null,null,"","Yes"]
[null,null,null,null,"","Yes"]
[null,null,null,null,"","Yes"]
[null,null,null,null,"","Yes"]
[null,null,null,null,"","Yes"]
[null,null,null,null,"","Yes"]
[null,null,null,null,"","Yes"]
[null,null,null,null,"","Yes"]
[null,null,null,null,"","Yes"]
[null,null,null,null,"","Yes"]
[null,null,null,null,"","Yes"]
[null,null,null,null,"","Yes"]
[null,null,null,null,"","Yes"]
[null,null,null,null,"","Yes"]
[null,null,null,null,"","Yes"]
[null,null,null,null,"","Yes"]
[null,null,null,null,"","Yes"]
[null,null,null,null,"","Yes"]
[null,null,null,null,"","Yes"]
[null,null,null,null,"","Yes"]
[null,null,null,null,"","Yes"]
[null,null,null,null,"","Yes"]
[null,null,null,null,"","Yes"]
[null,null,null,null,"","Yes"]
[null,null,null,null,"","Yes"]
[null,null,null,null,"","Yes"]
[null,null,null,null,"","Yes"]
[null,null,null,null,"","Yes"]
[null,null,null,null,{"$f":"LEFT(RIGHT(B2819,6),6)","v":""},{"$f":"IF(COUNTIF($A:$A,$E2819)>0,\"Yes\", \"No\")","v":"Yes"}]
[null,null,null,null,"","Yes"]
[null,null,null,null,"","Yes"]
[null,null,null,null,"","Yes"]
[null,null,null,null,"","Yes"]
[null,null,null,null,"","Yes"]
[null,null,null,null,"","Yes"]
[null,null,null,null,"","Yes"]
[null,null,null,null,"","Yes"]
[null,null,null,null,"","Yes"]
[null,null,null,null,"","Yes"]
[null,null,null,null,"","Yes"]
[null,null,null,null,"","Yes"]
[null,null,null,null,"","Yes"]
[null,null,null,null,"","Yes"]
[null,null,null,null,"","Yes"]
[null,null,null,null,"","Yes"]
[null,null,null,null,"","Yes"]
[null,null,null,null,"","Yes"]
[null,null,null,null,"","Yes"]
[null,null,null,null,"","Yes"]
[null,null,null,null,"","Yes"]
[null,null,null,null,"","Yes"]
[null,null,null,null,"","Yes"]
[null,null,null,null,"","Yes"]
[null,null,null,null,"","Yes"]
[null,null,null,null,"","Yes"]
[null,null,null,null,"","Yes"]
[null,null,null,null,"","Yes"]
[null,null,null,null,"","Yes"]
[null,null,null,null,"","Yes"]
[null,null,null,null,"","Yes"]
[null,null,null,null,"","Yes"]
[null,null,null,null,"","Yes"]
[null,null,null,null,"","Yes"]
[null,null,null,null,"","Yes"]
[null,null,null,null,"","Yes"]
[null,null,null,null,"","Yes"]
[null,null,null,null,"","Yes"]
[null,null,null,null,"","Yes"]
[null,null,null,null,"","Yes"]
[null,null,null,null,"","Yes"]
[null,null,null,null,"","Yes"]
[null,null,null,null,"","Yes"]
[null,null,null,null,"","Yes"]
[null,null,null,null,"","Yes"]
[null,null,null,null,"","Yes"]
[null,null,null,null,"","Yes"]
[null,null,null,null,"","Yes"]
[null,null,null,null,"","Yes"]
[null,null,null,null,"","Yes"]
[null,null,null,null,"","Yes"]
[null,null,null,null,"","Yes"]
[null,null,null,null,"","Yes"]
[null,null,null,null,"","Yes"]
[null,null,null,null,"","Yes"]
[null,null,null,null,"","Yes"]
[null,null,null,null,"","Yes"]
[null,null,null,null,"","Yes"]
[null,null,null,null,"","Yes"]
[null,null,null,null,"","Yes"]
[null,null,null,null,"","Yes"]
[null,null,null,null,"","Yes"]
[null,null,null,null,"","Yes"]
[null,null,null,null,{"$f":"LEFT(RIGHT(B2883,6),6)","v":""},{"$f":"IF(COUNTIF($A:$A,$E2883)>0,\"Yes\", \"No\")","v":"Yes"}]
[null,null,null,null,"","Yes"]
[null,null,null,null,"","Yes"]
[null,null,null,null,"","Yes"]
[null,null,null,null,"","Yes"]
[null,null,null,null,"","Yes"]
[null,null,null,null,"","Yes"]
[null,null,null,null,"","Yes"]
[null,null,null,null,"","Yes"]
[null,null,null,null,"","Yes"]
[null,null,null,null,"","Yes"]
[null,null,null,null,"","Yes"]
[null,null,null,null,"","Yes"]
[null,null,null,null,"","Yes"]
[null,null,null,null,"","Yes"]
[null,null,null,null,"","Yes"]
[null,null,null,null,"","Yes"]
[null,null,null,null,"","Yes"]
[null,null,null,null,"","Yes"]
[null,null,null,null,"","Yes"]
[null,null,null,null,"","Yes"]
[null,null,null,null,"","Yes"]
[null,null,null,null,"","Yes"]
[null,null,null,null,"","Yes"]
[null,null,null,null,"","Yes"]
[null,null,null,null,"","Yes"]
[null,null,null,null,"","Yes"]
[null,null,null,null,"","Yes"]
[null,null,null,null,"","Yes"]
[null,null,null,null,"","Yes"]
[null,null,null,null,"","Yes"]
[null,null,null,null,"","Yes"]
[null,null,null,null,"","Yes"]
[null,null,null,null,"","Yes"]
[null,null,null,null,"","Yes"]
[null,null,null,null,"","Yes"]
[null,null,null,null,"","Yes"]
[null,null,null,null,"","Yes"]
[null,null,null,null,"","Yes"]
[null,null,null,null,"","Yes"]
[null,null,null,null,"","Yes"]
[null,null,null,null,"","Yes"]
[null,null,null,null,"","Yes"]
[null,null,null,null,"","Yes"]
[null,null,null,null,"","Yes"]
[null,null,null,null,"","Yes"]
[null,null,null,null,"","Yes"]
[null,null,null,null,"","Yes"]
[null,null,null,null,"","Yes"]
[null,null,null,null,"","Yes"]
[null,null,null,null,"","Yes"]
[null,null,null,null,"","Yes"]
[null,null,null,null,"","Yes"]
[null,null,null,null,"","Yes"]
[null,null,null,null,"","Yes"]
[null,null,null,null,"","Yes"]
[null,null,null,null,"","Yes"]
[null,null,null,null,"","Yes"]
[null,null,null,null,"","Yes"]
[null,null,null,null,"","Yes"]
[null,null,null,null,"","Yes"]
[null,null,null,null,"","Yes"]
[null,null,null,null,"","Yes"]
[null,null,null,null,"","Yes"]
[null,null,null,null,{"$f":"LEFT(RIGHT(B2947,6),6)","v":""},{"$f":"IF(COUNTIF($A:$A,$E2947)>0,\"Yes\", \"No\")","v":"Yes"}]
[null,null,null,null,"","Yes"]
[null,null,null,null,"","Yes"]
[null,null,null,null,"","Yes"]
[null,null,null,null,"","Yes"]
[null,null,null,null,"","Yes"]
[null,null,null,null,"","Yes"]
[null,null,null,null,"","Yes"]
[null,null,null,null,"","Yes"]
[null,null,null,null,"","Yes"]
[null,null,null,null,"","Yes"]
[null,null,null,null,"","Yes"]
[null,null,null,null,"","Yes"]
[null,null,null,null,"","Yes"]
[null,null,null,null,"","Yes"]
[null,null,null,null,"","Yes"]
[null,null,null,null,"","Yes"]
[null,null,null,null,"","Yes"]
[null,null,null,null,"","Yes"]
[null,null,null,null,"","Yes"]
[null,null,null,null,"","Yes"]
[null,null,null,null,"","Yes"]
[null,null,null,null,"","Yes"]
[null,null,null,null,"","Yes"]
[null,null,null,null,"","Yes"]
[null,null,null,null,"","Yes"]
[null,null,null,null,"","Yes"]
[null,null,null,null,"","Yes"]
[null,null,null,null,"","Yes"]
[null,null,null,null,"","Yes"]
[null,null,null,null,"","Yes"]
[null,null,null,null,"","Yes"]
[null,null,null,null,"","Yes"]
[null,null,null,null,"","Yes"]
[null,null,null,null,"","Yes"]
[null,null,null,null,"","Yes"]
[null,null,null,null,"","Yes"]
[null,null,null,null,"","Yes"]
[null,null,null,null,"","Yes"]
[null,null,null,null,"","Yes"]
[null,null,null,null,"","Yes"]
[null,null,null,null,"","Yes"]
[null,null,null,null,"","Yes"]
[null,null,null,null,"","Yes"]
[null,null,null,null,"","Yes"]
[null,null,null,null,"","Yes"]
[null,null,null,null,"","Yes"]
[null,null,null,null,"","Yes"]
[null,null,null,null,"","Yes"]
[null,null,null,null,"","Yes"]
[null,null,null,null,"","Yes"]
[null,null,null,null,"","Yes"]
[null,null,null,null,"","Yes"]
[null,null,null,null,"","Yes"]
[null,null,null,null,"","Yes"]
[null,null,null,null,"","Yes"]
[null,null,null,null,"","Yes"]
[null,null,null,null,"","Yes"]
[null,null,null,null,"","Yes"]
[null,null,null,null,"","Yes"]
[null,null,null,null,"","Yes"]
[null,null,null,null,"","Yes"]
[null,null,null,null,"","Yes"]
[null,null,null,null,"","Yes"]
[null,null,null,null,{"$f":"LEFT(RIGHT(B3011,6),6)","v":""},{"$f":"IF(COUNTIF($A:$A,$E3011)>0,\"Yes\", \"No\")","v":"Yes"}]
[null,null,null,null,"","Yes"]
[null,null,null,null,"","Yes"]
[null,null,null,null,"","Yes"]
[null,null,null,null,"","Yes"]
[null,null,null,null,"","Yes"]
[null,null,null,null,"","Yes"]
[null,null,null,null,"","Yes"]
[null,null,null,null,"","Yes"]
[null,null,null,null,"","Yes"]
[null,null,null,null,"","Yes"]
[null,null,null,null,"","Yes"]
[null,null,null,null,"","Yes"]
[null,null,null,null,"","Yes"]
[null,null,null,null,"","Yes"]
[null,null,null,null,"","Yes"]
[null,null,null,null,"","Yes"]
[null,null,null,null,"","Yes"]
[null,null,null,null,"","Yes"]
[null,null,null,null,"","Yes"]
[null,null,null,null,"","Yes"]
[null,null,null,null,"","Yes"]
[null,null,null,null,"","Yes"]
[null,null,null,null,"","Yes"]
[null,null,null,null,"","Yes"]
[null,null,null,null,"","Yes"]
[null,null,null,null,"","Yes"]
[null,null,null,null,"","Yes"]
[null,null,null,null,"","Yes"]
[null,null,null,null,"","Yes"]
[null,null,null,null,"","Yes"]
[null,null,null,null,"","Yes"]
[null,null,null,null,"","Yes"]
[null,null,null,null,"","Yes"]
[null,null,null,null,"","Yes"]
[null,null,null,null,"","Yes"]
[null,null,null,null,"","Yes"]
[null,null,null,null,"","Yes"]
[null,null,null,null,"","Yes"]
[null,null,null,null,"","Yes"]
[null,null,null,null,"","Yes"]
[null,null,null,null,"","Yes"]
[null,null,null,null,"","Yes"]
[null,null,null,null,"","Yes"]
[null,null,null,null,"","Yes"]
[null,null,null,null,"","Yes"]
[null,null,null,null,"","Yes"]
[null,null,null,null,"","Yes"]
[null,null,null,null,"","Yes"]
[null,null,null,null,"","Yes"]
[null,null,null,null,"","Yes"]
[null,null,null,null,"","Yes"]
[null,null,null,null,"","Yes"]
[null,null,null,null,"","Yes"]
[null,null,null,null,"","Yes"]
[null,null,null,null,"","Yes"]
[null,null,null,null,"","Yes"]
[null,null,null,null,"","Yes"]
[null,null,null,null,"","Yes"]
[null,null,null,null,"","Yes"]
[null,null,null,null,"","Yes"]
[null,null,null,null,"","Yes"]
[null,null,null,null,"","Yes"]
[null,null,null,null,"","Yes"]
[null,null,null,null,{"$f":"LEFT(RIGHT(B3075,6),6)","v":""},{"$f":"IF(COUNTIF($A:$A,$E3075)>0,\"Yes\", \"No\")","v":"Yes"}]
[null,null,null,null,"","Yes"]
[null,null,null,null,"","Yes"]
[null,null,null,null,"","Yes"]
[null,null,null,null,"","Yes"]
[null,null,null,null,"","Yes"]
[null,null,null,null,"","Yes"]
[null,null,null,null,"","Yes"]
[null,null,null,null,"","Yes"]
[null,null,null,null,"","Yes"]
[null,null,null,null,"","Yes"]
[null,null,null,null,"","Yes"]
[null,null,null,null,"","Yes"]
[null,null,null,null,"","Yes"]
[null,null,null,null,"","Yes"]
[null,null,null,null,"","Yes"]
[null,null,null,null,"","Yes"]
[null,null,null,null,"","Yes"]
[null,null,null,null,"","Yes"]
[null,null,null,null,"","Yes"]
[null,null,null,null,"","Yes"]
[null,null,null,null,"","Yes"]
[null,null,null,null,"","Yes"]
[null,null,null,null,"","Yes"]
[null,null,null,null,"","Yes"]
[null,null,null,null,"","Yes"]
[null,null,null,null,"","Yes"]
[null,null,null,null,"","Yes"]
[null,null,null,null,"","Yes"]
[null,null,null,null,"","Yes"]
[null,null,null,null,"","Yes"]
[null,null,null,null,"","Yes"]
[null,null,null,null,"","Yes"]
[null,null,null,null,"","Yes"]
[null,null,null,null,"","Yes"]
[null,null,null,null,"","Yes"]
[null,null,null,null,"","Yes"]
[null,null,null,null,"","Yes"]
[null,null,null,null,"","Yes"]
[null,null,null,null,"","Yes"]
[null,null,null,null,"","Yes"]
[null,null,null,null,"","Yes"]
[null,null,null,null,"","Yes"]
[null,null,null,null,"","Yes"]
[null,null,null,null,"","Yes"]
[null,null,null,null,"","Yes"]
[null,null,null,null,"","Yes"]
[null,null,null,null,"","Yes"]
[null,null,null,null,"","Yes"]
[null,null,null,null,"","Yes"]
[null,null,null,null,"","Yes"]
[null,null,null,null,"","Yes"]
[null,null,null,null,"","Yes"]
[null,null,null,null,"","Yes"]
[null,null,null,null,"","Yes"]
[null,null,null,null,"","Yes"]
[null,null,null,null,"","Yes"]
[null,null,null,null,"","Yes"]
[null,null,null,null,"","Yes"]
[null,null,null,null,"","Yes"]
[null,null,null,null,"","Yes"]
[null,null,null,null,"","Yes"]
[null,null,null,null,"","Yes"]
[null,null,null,null,"","Yes"]
[null,null,null,null,{"$f":"LEFT(RIGHT(B3139,6),6)","v":""},{"$f":"IF(COUNTIF($A:$A,$E3139)>0,\"Yes\", \"No\")","v":"Yes"}]
[null,null,null,null,"","Yes"]
[null,null,null,null,"","Yes"]
[null,null,null,null,"","Yes"]
[null,null,null,null,"","Yes"]
[null,null,null,null,"","Yes"]
[null,null,null,null,"","Yes"]
[null,null,null,null,"","Yes"]
[null,null,null,null,"","Yes"]
[null,null,null,null,"","Yes"]
[null,null,null,null,"","Yes"]
[null,null,null,null,"","Yes"]
[null,null,null,null,"","Yes"]
[null,null,null,null,"","Yes"]
[null,null,null,null,"","Yes"]
[null,null,null,null,"","Yes"]
[null,null,null,null,"","Yes"]
[null,null,null,null,"","Yes"]
[null,null,null,null,"","Yes"]
[null,null,null,null,"","Yes"]
[null,null,null,null,"","Yes"]
[null,null,null,null,"","Yes"]
[null,null,null,null,"","Yes"]
[null,null,null,null,"","Yes"]
[null,null,null,null,"","Yes"]
[null,null,null,null,"","Yes"]
[null,null,null,null,"","Yes"]
[null,null,null,null,"","Yes"]
[null,null,null,null,"","Yes"]
[null,null,null,null,"","Yes"]
[null,null,null,null,"","Yes"]
[null,null,null,null,"","Yes"]
[null,null,null,null,"","Yes"]
[null,null,null,null,"","Yes"]
[null,null,null,null,"","Yes"]
[null,null,null,null,"","Yes"]
[null,null,null,null,"","Yes"]
[null,null,null,null,"","Yes"]
[null,null,null,null,"","Yes"]
[null,null,null,null,"","Yes"]
[null,null,null,null,"","Yes"]
[null,null,null,null,"","Yes"]
[null,null,null,null,"","Yes"]
[null,null,null,null,"","Yes"]
[null,null,null,null,"","Yes"]
[null,null,null,null,"","Yes"]
[null,null,null,null,"","Yes"]
[null,null,null,null,"","Yes"]
[null,null,null,null,"","Yes"]
[null,null,null,null,"","Yes"]
[null,null,null,null,"","Yes"]
[null,null,null,null,"","Yes"]
[null,null,null,null,"","Yes"]
[null,null,null,null,"","Yes"]
[null,null,null,null,"","Yes"]
[null,null,null,null,"","Yes"]
[null,null,null,null,"","Yes"]
[null,null,null,null,"","Yes"]
[null,null,null,null,"","Yes"]
[null,null,null,null,"","Yes"]
[null,null,null,null,"","Yes"]
[null,null,null,null,"","Yes"]
[null,null,null,null,"","Yes"]
[null,null,null,null,"","Yes"]
[null,null,null,null,{"$f":"LEFT(RIGHT(B3203,6),6)","v":""},{"$f":"IF(COUNTIF($A:$A,$E3203)>0,\"Yes\", \"No\")","v":"Yes"}]
[null,null,null,null,"","Yes"]
[null,null,null,null,"","Yes"]
[null,null,null,null,"","Yes"]
[null,null,null,null,"","Yes"]
[null,null,null,null,"","Yes"]
[null,null,null,null,"","Yes"]
[null,null,null,null,"","Yes"]
[null,null,null,null,"","Yes"]
[null,null,null,null,"","Yes"]
[null,null,null,null,"","Yes"]
[null,null,null,null,"","Yes"]
[null,null,null,null,"","Yes"]
[null,null,null,null,"","Yes"]
[null,null,null,null,"","Yes"]
[null,null,null,null,"","Yes"]
[null,null,null,null,"","Yes"]
[null,null,null,null,"","Yes"]
[null,null,null,null,"","Yes"]
[null,null,null,null,"","Yes"]
[null,null,null,null,"","Yes"]
[null,null,null,null,"","Yes"]
[null,null,null,null,"","Yes"]
[null,null,null,null,"","Yes"]
[null,null,null,null,"","Yes"]
[null,null,null,null,"","Yes"]
[null,null,null,null,"","Yes"]
[null,null,null,null,"","Yes"]
[null,null,null,null,"","Yes"]
[null,null,null,null,"","Yes"]
[null,null,null,null,"","Yes"]
[null,null,null,null,"","Yes"]
[null,null,null,null,"","Yes"]
[null,null,null,null,"","Yes"]
[null,null,null,null,"","Yes"]
[null,null,null,null,"","Yes"]
[null,null,null,null,"","Yes"]
[null,null,null,null,"","Yes"]
[null,null,null,null,"","Yes"]
[null,null,null,null,"","Yes"]
[null,null,null,null,"","Yes"]
[null,null,null,null,"","Yes"]
[null,null,null,null,"","Yes"]
[null,null,null,null,"","Yes"]
[null,null,null,null,"","Yes"]
[null,null,null,null,"","Yes"]
[null,null,null,null,"","Yes"]
[null,null,null,null,"","Yes"]
[null,null,null,null,"","Yes"]
[null,null,null,null,"","Yes"]
[null,null,null,null,"","Yes"]
[null,null,null,null,"","Yes"]
[null,null,null,null,"","Yes"]
[null,null,null,null,"","Yes"]
[null,null,null,null,"","Yes"]
[null,null,null,null,"","Yes"]
[null,null,null,null,"","Yes"]
[null,null,null,null,"","Yes"]
[null,null,null,null,"","Yes"]
[null,null,null,null,"","Yes"]
[null,null,null,null,"","Yes"]
[null,null,null,null,"","Yes"]
[null,null,null,null,"","Yes"]
[null,null,null,null,"","Yes"]
[null,null,null,null,{"$f":"LEFT(RIGHT(B3267,6),6)","v":""},{"$f":"IF(COUNTIF($A:$A,$E3267)>0,\"Yes\", \"No\")","v":"Yes"}]
[null,null,null,null,"","Yes"]
[null,null,null,null,"","Yes"]
[null,null,null,null,"","Yes"]
[null,null,null,null,"","Yes"]
[null,null,null,null,"","Yes"]
[null,null,null,null,"","Yes"]
[null,null,null,null,"","Yes"]
[null,null,null,null,"","Yes"]
[null,null,null,null,"","Yes"]
[null,null,null,null,"","Yes"]
[null,null,null,null,"","Yes"]
[null,null,null,null,"","Yes"]
[null,null,null,null,"","Yes"]
[null,null,null,null,"","Yes"]
[null,null,null,null,"","Yes"]
[null,null,null,null,"","Yes"]
[null,null,null,null,"","Yes"]
[null,null,null,null,"","Yes"]
[null,null,null,null,"","Yes"]
[null,null,null,null,"","Yes"]
[null,null,null,null,"","Yes"]
[null,null,null,null,"","Yes"]
[null,null,null,null,"","Yes"]
[null,null,null,null,"","Yes"]
[null,null,null,null,"","Yes"]
[null,null,null,null,"","Yes"]
[null,null,null,null,"","Yes"]
[null,null,null,null,"","Yes"]
[null,null,null,null,"","Yes"]
[null,null,null,null,"","Yes"]
[null,null,null,null,"","Yes"]
[null,null,null,null,"","Yes"]
[null,null,null,null,"","Yes"]
[null,null,null,null,"","Yes"]
[null,null,null,null,"","Yes"]
[null,null,null,null,"","Yes"]
[null,null,null,null,"","Yes"]
[null,null,null,null,"","Yes"]
[null,null,null,null,"","Yes"]
[null,null,null,null,"","Yes"]
[null,null,null,null,"","Yes"]
[null,null,null,null,"","Yes"]
[null,null,null,null,"","Yes"]
[null,null,null,null,"","Yes"]
[null,null,null,null,"","Yes"]
[null,null,null,null,"","Yes"]
[null,null,null,null,"","Yes"]
[null,null,null,null,"","Yes"]
[null,null,null,null,"","Yes"]
[null,null,null,null,"","Yes"]
[null,null,null,null,"","Yes"]
[null,null,null,null,"","Yes"]
[null,null,null,null,"","Yes"]
[null,null,null,null,"","Yes"]
[null,null,null,null,"","Yes"]
[null,null,null,null,"","Yes"]
[null,null,null,null,"","Yes"]
[null,null,null,null,"","Yes"]
[null,null,null,null,"","Yes"]
[null,null,null,null,"","Yes"]
[null,null,null,null,"","Yes"]
[null,null,null,null,"","Yes"]
[null,null,null,null,"","Yes"]
[null,null,null,null,{"$f":"LEFT(RIGHT(B3331,6),6)","v":""},{"$f":"IF(COUNTIF($A:$A,$E3331)>0,\"Yes\", \"No\")","v":"Yes"}]
[null,null,null,null,"","Yes"]
[null,null,null,null,"","Yes"]
[null,null,null,null,"","Yes"]
[null,null,null,null,"","Yes"]
[null,null,null,null,"","Yes"]
[null,null,null,null,"","Yes"]
[null,null,null,null,"","Yes"]
[null,null,null,null,"","Yes"]
[null,null,null,null,"","Yes"]
[null,null,null,null,"","Yes"]
[null,null,null,null,"","Yes"]
[null,null,null,null,"","Yes"]
[null,null,null,null,"","Yes"]
[null,null,null,null,"","Yes"]
[null,null,null,null,"","Yes"]
[null,null,null,null,"","Yes"]
[null,null,null,null,"","Yes"]
[null,null,null,null,"","Yes"]
[null,null,null,null,"","Yes"]
[null,null,null,null,"","Yes"]
[null,null,null,null,"","Yes"]
[null,null,null,null,"","Yes"]
[null,null,null,null,"","Yes"]
[null,null,null,null,"","Yes"]
[null,null,null,null,"","Yes"]
[null,null,null,null,"","Yes"]
[null,null,null,null,"","Yes"]
[null,null,null,null,"","Yes"]
[null,null,null,null,"","Yes"]
[null,null,null,null,"","Yes"]
[null,null,null,null,"","Yes"]
[null,null,null,null,"","Yes"]
[null,null,null,null,"","Yes"]
[null,null,null,null,"","Yes"]
[null,null,null,null,"","Yes"]
[null,null,null,null,"","Yes"]
[null,null,null,null,"","Yes"]
[null,null,null,null,"","Yes"]
[null,null,null,null,"","Yes"]
[null,null,null,null,"","Yes"]
[null,null,null,null,"","Yes"]
[null,null,null,null,"","Yes"]
[null,null,null,null,"","Yes"]
[null,null,null,null,"","Yes"]
[null,null,null,null,"","Yes"]
[null,null,null,null,"","Yes"]
[null,null,null,null,"","Yes"]
[null,null,null,null,"","Yes"]
[null,null,null,null,"","Yes"]
[null,null,null,null,"","Yes"]
[null,null,null,null,"","Yes"]
[null,null,null,null,"","Yes"]
[null,null,null,null,"","Yes"]
[null,null,null,null,"","Yes"]
[null,null,null,null,"","Yes"]
[null,null,null,null,"","Yes"]
[null,null,null,null,"","Yes"]
[null,null,null,null,"","Yes"]
[null,null,null,null,"","Yes"]
[null,null,null,null,"","Yes"]
[null,null,null,null,"","Yes"]
[null,null,null,null,"","Yes"]
[null,null,null,null,"","Yes"]
[null,null,null,null,{"$f":"LEFT(RIGHT(B3395,6),6)","v":""},{"$f":"IF(COUNTIF($A:$A,$E3395)>0,\"Yes\", \"No\")","v":"Yes"}]
[null,null,null,null,"","Yes"]
[null,null,null,null,"","Yes"]
[null,null,null,null,"","Yes"]
[null,null,null,null,"","Yes"]
[null,null,null,null,"","Yes"]
[null,null,null,null,"","Yes"]
[null,null,null,null,"","Yes"]
[null,null,null,null,"","Yes"]
[null,null,null,null,"","Yes"]
[null,null,null,null,"","Yes"]
[null,null,null,null,"","Yes"]
[null,null,null,null,"","Yes"]
[null,null,null,null,"","Yes"]
[null,null,null,null,"","Yes"]
[null,null,null,null,"","Yes"]
[null,null,null,null,"","Yes"]
[null,null,null,null,"","Yes"]
[null,null,null,null,"","Yes"]
[null,null,null,null,"","Yes"]
[null,null,null,null,"","Yes"]
[null,null,null,null,"","Yes"]
[null,null,null,null,"","Yes"]
[null,null,null,null,"","Yes"]
[null,null,null,null,"","Yes"]
[null,null,null,null,"","Yes"]
[null,null,null,null,"","Yes"]
[null,null,null,null,"","Yes"]
[null,null,null,null,"","Yes"]
[null,null,null,null,"","Yes"]
[null,null,null,null,"","Yes"]
[null,null,null,null,"","Yes"]
[null,null,null,null,"","Yes"]
[null,null,null,null,"","Yes"]
[null,null,null,null,"","Yes"]
[null,null,null,null,"","Yes"]
[null,null,null,null,"","Yes"]
[null,null,null,null,"","Yes"]
[null,null,null,null,"","Yes"]
[null,null,null,null,"","Yes"]
[null,null,null,null,"","Yes"]
[null,null,null,null,"","Yes"]
[null,null,null,null,"","Yes"]
[null,null,null,null,"","Yes"]
[null,null,null,null,"","Yes"]
[null,null,null,null,"","Yes"]
[null,null,null,null,"","Yes"]
[null,null,null,null,"","Yes"]
[null,null,null,null,"","Yes"]
[null,null,null,null,"","Yes"]
[null,null,null,null,"","Yes"]
[null,null,null,null,"","Yes"]
[null,null,null,null,"","Yes"]
[null,null,null,null,"","Yes"]
[null,null,null,null,"","Yes"]
[null,null,null,null,"","Yes"]
[null,null,null,null,"","Yes"]
[null,null,null,null,"","Yes"]
[null,null,null,null,"","Yes"]
[null,null,null,null,"","Yes"]
[null,null,null,null,"","Yes"]
[null,null,null,null,"","Yes"]
[null,null,null,null,"","Yes"]
[null,null,null,null,"","Yes"]
[null,null,null,null,{"$f":"LEFT(RIGHT(B3459,6),6)","v":""},{"$f":"IF(COUNTIF($A:$A,$E3459)>0,\"Yes\", \"No\")","v":"Yes"}]
[null,null,null,null,"","Yes"]
[null,null,null,null,"","Yes"]
[null,null,null,null,"","Yes"]
[null,null,null,null,"","Yes"]
[null,null,null,null,"","Yes"]
[null,null,null,null,"","Yes"]
[null,null,null,null,"","Yes"]
[null,null,null,null,"","Yes"]
[null,null,null,null,"","Yes"]
[null,null,null,null,"","Yes"]
[null,null,null,null,"","Yes"]
[null,null,null,null,"","Yes"]
[null,null,null,null,"","Yes"]
[null,null,null,null,"","Yes"]
[null,null,null,null,"","Yes"]
[null,null,null,null,"","Yes"]
[null,null,null,null,"","Yes"]
[null,null,null,null,"","Yes"]
[null,null,null,null,"","Yes"]
[null,null,null,null,"","Yes"]
[null,null,null,null,"","Yes"]
[null,null,null,null,"","Yes"]
[null,null,null,null,"","Yes"]
[null,null,null,null,"","Yes"]
[null,null,null,null,"","Yes"]
[null,null,null,null,"","Yes"]
[null,null,null,null,"","Yes"]
[null,null,null,null,"","Yes"]
[null,null,null,null,"","Yes"]
[null,null,null,null,"","Yes"]
[null,null,null,null,"","Yes"]
[null,null,null,null,"","Yes"]
[null,null,null,null,"","Yes"]
[null,null,null,null,"","Yes"]
[null,null,null,null,"","Yes"]
[null,null,null,null,"","Yes"]
[null,null,null,null,"","Yes"]
[null,null,null,null,"","Yes"]
[null,null,null,null,"","Yes"]
[null,null,null,null,"","Yes"]
[null,null,null,null,"","Yes"]
[null,null,null,null,"","Yes"]
[null,null,null,null,"","Yes"]
[null,null,null,null,"","Yes"]
[null,null,null,null,"","Yes"]
[null,null,null,null,"","Yes"]
[null,null,null,null,"","Yes"]
[null,null,null,null,"","Yes"]
[null,null,null,null,"","Yes"]
[null,null,null,null,"","Yes"]
[null,null,null,null,"","Yes"]
[null,null,null,null,"","Yes"]
[null,null,null,null,"","Yes"]
[null,null,null,null,"","Yes"]
[null,null,null,null,"","Yes"]
[null,null,null,null,"","Yes"]
[null,null,null,null,"","Yes"]
[null,null,null,null,"","Yes"]
[null,null,null,null,"","Yes"]
[null,null,null,null,"","Yes"]
[null,null,null,null,"","Yes"]
[null,null,null,null,"","Yes"]
[null,null,null,null,"","Yes"]
[null,null,null,null,{"$f":"LEFT(RIGHT(B3523,6),6)","v":""},{"$f":"IF(COUNTIF($A:$A,$E3523)>0,\"Yes\", \"No\")","v":"Yes"}]
[null,null,null,null,"","Yes"]
[null,null,null,null,"","Yes"]
[null,null,null,null,"","Yes"]
[null,null,null,null,"","Yes"]
[null,null,null,null,"","Yes"]
[null,null,null,null,"","Yes"]
[null,null,null,null,"","Yes"]
[null,null,null,null,"","Yes"]
[null,null,null,null,"","Yes"]
[null,null,null,null,"","Yes"]
[null,null,null,null,"","Yes"]
[null,null,null,null,"","Yes"]
[null,null,null,null,"","Yes"]
[null,null,null,null,"","Yes"]
[null,null,null,null,"","Yes"]
[null,null,null,null,"","Yes"]
[null,null,null,null,"","Yes"]
[null,null,null,null,"","Yes"]
[null,null,null,null,"","Yes"]
[null,null,null,null,"","Yes"]
[null,null,null,null,"","Yes"]
[null,null,null,null,"","Yes"]
[null,null,null,null,"","Yes"]
[null,null,null,null,"","Yes"]
[null,null,null,null,"","Yes"]
[null,null,null,null,"","Yes"]
[null,null,null,null,"","Yes"]
[null,null,null,null,"","Yes"]
[null,null,null,null,"","Yes"]
[null,null,null,null,"","Yes"]
[null,null,null,null,"","Yes"]
[null,null,null,null,"","Yes"]
[null,null,null,null,"","Yes"]
[null,null,null,null,"","Yes"]
[null,null,null,null,"","Yes"]
[null,null,null,null,"","Yes"]
[null,null,null,null,"","Yes"]
[null,null,null,null,"","Yes"]
[null,null,null,null,"","Yes"]
[null,null,null,null,"","Yes"]
[null,null,null,null,"","Yes"]
[null,null,null,null,"","Yes"]
[null,null,null,null,"","Yes"]
[null,null,null,null,"","Yes"]
[null,null,null,null,"","Yes"]
[null,null,null,null,"","Yes"]
[null,null,null,null,"","Yes"]
[null,null,null,null,"","Yes"]
[null,null,null,null,"","Yes"]
[null,null,null,null,"","Yes"]
[null,null,null,null,"","Yes"]
[null,null,null,null,"","Yes"]
[null,null,null,null,"","Yes"]
[null,null,null,null,"","Yes"]
[null,null,null,null,"","Yes"]
[null,null,null,null,"","Yes"]
[null,null,null,null,"","Yes"]
[null,null,null,null,"","Yes"]
[null,null,null,null,"","Yes"]
[null,null,null,null,"","Yes"]
[null,null,null,null,"","Yes"]
[null,null,null,null,"","Yes"]
[null,null,null,null,"","Yes"]
[null,null,null,null,{"$f":"LEFT(RIGHT(B3587,6),6)","v":""},{"$f":"IF(COUNTIF($A:$A,$E3587)>0,\"Yes\", \"No\")","v":"Yes"}]
[null,null,null,null,"","Yes"]
[null,null,null,null,"","Yes"]
[null,null,null,null,"","Yes"]
[null,null,null,null,"","Yes"]
[null,null,null,null,"","Yes"]
[null,null,null,null,"","Yes"]
[null,null,null,null,"","Yes"]
[null,null,null,null,"","Yes"]
[null,null,null,null,"","Yes"]
[null,null,null,null,"","Yes"]
[null,null,null,null,"","Yes"]
[null,null,null,null,"","Yes"]
[null,null,null,null,"","Yes"]
[null,null,null,null,"","Yes"]
[null,null,null,null,"","Yes"]
[null,null,null,null,"","Yes"]
[null,null,null,null,"","Yes"]
[null,null,null,null,"","Yes"]
[null,null,null,null,"","Yes"]
[null,null,null,null,"","Yes"]
[null,null,null,null,"","Yes"]
[null,null,null,null,"","Yes"]
[null,null,null,null,"","Yes"]
[null,null,null,null,"","Yes"]
[null,null,null,null,"","Yes"]
[null,null,null,null,"","Yes"]
[null,null,null,null,"","Yes"]
[null,null,null,null,"","Yes"]
[null,null,null,null,"","Yes"]
[null,null,null,null,"","Yes"]
[null,null,null,null,"","Yes"]
[null,null,null,null,"","Yes"]
[null,null,null,null,"","Yes"]
[null,null,null,null,"","Yes"]
[null,null,null,null,"","Yes"]
[null,null,null,null,"","Yes"]
[null,null,null,null,"","Yes"]
[null,null,null,null,"","Yes"]
[null,null,null,null,"","Yes"]
[null,null,null,null,"","Yes"]
[null,null,null,null,"","Yes"]
[null,null,null,null,"","Yes"]
[null,null,null,null,"","Yes"]
[null,null,null,null,"","Yes"]
[null,null,null,null,"","Yes"]
[null,null,null,null,"","Yes"]
[null,null,null,null,"","Yes"]
[null,null,null,null,"","Yes"]
[null,null,null,null,"","Yes"]
[null,null,null,null,"","Yes"]
[null,null,null,null,"","Yes"]
[null,null,null,null,"","Yes"]
[null,null,null,null,"","Yes"]
[null,null,null,null,"","Yes"]
[null,null,null,null,"","Yes"]
[null,null,null,null,"","Yes"]
[null,null,null,null,"","Yes"]
[null,null,null,null,"","Yes"]
[null,null,null,null,"","Yes"]
[null,null,null,null,"","Yes"]
[null,null,null,null,"","Yes"]
[null,null,null,null,"","Yes"]
[null,null,null,null,"","Yes"]
[null,null,null,null,{"$f":"LEFT(RIGHT(B3651,6),6)","v":""},{"$f":"IF(COUNTIF($A:$A,$E3651)>0,\"Yes\", \"No\")","v":"Yes"}]
[null,null,null,null,"","Yes"]
[null,null,null,null,"","Yes"]
[null,null,null,null,"","Yes"]
[null,null,null,null,"","Yes"]
[null,null,null,null,"","Yes"]
[null,null,null,null,"","Yes"]
[null,null,null,null,"","Yes"]
[null,null,null,null,"","Yes"]
[null,null,null,null,"","Yes"]
[null,null,null,null,"","Yes"]
[null,null,null,null,"","Yes"]
[null,null,null,null,"","Yes"]
[null,null,null,null,"","Yes"]
[null,null,null,null,"","Yes"]
[null,null,null,null,"","Yes"]
[null,null,null,null,"","Yes"]
[null,null,null,null,"","Yes"]
[null,null,null,null,"","Yes"]
[null,null,null,null,"","Yes"]
[null,null,null,null,"","Yes"]
[null,null,null,null,"","Yes"]
[null,null,null,null,"","Yes"]
[null,null,null,null,"","Yes"]
[null,null,null,null,"","Yes"]
[null,null,null,null,"","Yes"]
[null,null,null,null,"","Yes"]
[null,null,null,null,"","Yes"]
[null,null,null,null,"","Yes"]
[null,null,null,null,"","Yes"]
[null,null,null,null,"","Yes"]
[null,null,null,null,"","Yes"]
[null,null,null,null,"","Yes"]
[null,null,null,null,"","Yes"]
[null,null,null,null,"","Yes"]
[null,null,null,null,"","Yes"]
[null,null,null,null,"","Yes"]
[null,null,null,null,"","Yes"]
[null,null,null,null,"","Yes"]
[null,null,null,null,"","Yes"]
[null,null,null,null,"","Yes"]
[null,null,null,null,"","Yes"]
[null,null,null,null,"","Yes"]
[null,null,null,null,"","Yes"]
[null,null,null,null,"","Yes"]
[null,null,null,null,"","Yes"]
[null,null,null,null,"","Yes"]
[null,null,null,null,"","Yes"]
[null,null,null,null,"","Yes"]
[null,null,null,null,"","Yes"]
[null,null,null,null,"","Yes"]
[null,null,null,null,"","Yes"]
[null,null,null,null,"","Yes"]
[null,null,null,null,"","Yes"]
[null,null,null,null,"","Yes"]
[null,null,null,null,"","Yes"]
[null,null,null,null,"","Yes"]
[null,null,null,null,"","Yes"]
[null,null,null,null,"","Yes"]
[null,null,null,null,"","Yes"]
[null,null,null,null,"","Yes"]
[null,null,null,null,"","Yes"]
[null,null,null,null,"","Yes"]
[null,null,null,null,"","Yes"]
[null,null,null,null,{"$f":"LEFT(RIGHT(B3715,6),6)","v":""},{"$f":"IF(COUNTIF($A:$A,$E3715)>0,\"Yes\", \"No\")","v":"Yes"}]
[null,null,null,null,"","Yes"]
[null,null,null,null,"","Yes"]
[null,null,null,null,"","Yes"]
[null,null,null,null,"","Yes"]
[null,null,null,null,"","Yes"]
[null,null,null,null,"","Yes"]
[null,null,null,null,"","Yes"]
[null,null,null,null,"","Yes"]
[null,null,null,null,"","Yes"]
[null,null,null,null,"","Yes"]
[null,null,null,null,"","Yes"]
[null,null,null,null,"","Yes"]
[null,null,null,null,"","Yes"]
[null,null,null,null,"","Yes"]
[null,null,null,null,"","Yes"]
[null,null,null,null,"","Yes"]
[null,null,null,null,"","Yes"]
[null,null,null,null,"","Yes"]
[null,null,null,null,"","Yes"]
[null,null,null,null,"","Yes"]
[null,null,null,null,"","Yes"]
[null,null,null,null,"","Yes"]
[null,null,null,null,"","Yes"]
[null,null,null,null,"","Yes"]
[null,null,null,null,"","Yes"]
[null,null,null,null,"","Yes"]
[null,null,null,null,"","Yes"]
[null,null,null,null,"","Yes"]
[null,null,null,null,"","Yes"]
[null,null,null,null,"","Yes"]
[null,null,null,null,"","Yes"]
[null,null,null,null,"","Yes"]
[null,null,null,null,"","Yes"]
[null,null,null,null,"","Yes"]
[null,null,null,null,"","Yes"]
[null,null,null,null,"","Yes"]
[null,null,null,null,"","Yes"]
[null,null,null,null,"","Yes"]
[null,null,null,null,"","Yes"]
[null,null,null,null,"","Yes"]
[null,null,null,null,"","Yes"]
[null,null,null,null,"","Yes"]
[null,null,null,null,"","Yes"]
[null,null,null,null,"","Yes"]
[null,null,null,null,"","Yes"]
[null,null,null,null,"","Yes"]
[null,null,null,null,"","Yes"]
[null,null,null,null,"","Yes"]
[null,null,null,null,"","Yes"]
[null,null,null,null,"","Yes"]
[null,null,null,null,"","Yes"]
[null,null,null,null,"","Yes"]
[null,null,null,null,"","Yes"]
[null,null,null,null,"","Yes"]
[null,null,null,null,"","Yes"]
[null,null,null,null,"","Yes"]
[null,null,null,null,"","Yes"]
[null,null,null,null,"","Yes"]
[null,null,null,null,"","Yes"]
[null,null,null,null,"","Yes"]
[null,null,null,null,"","Yes"]
[null,null,null,null,"","Yes"]
[null,null,null,null,"","Yes"]
[null,null,null,null,{"$f":"LEFT(RIGHT(B3779,6),6)","v":""},{"$f":"IF(COUNTIF($A:$A,$E3779)>0,\"Yes\", \"No\")","v":"Yes"}]
[null,null,null,null,"","Yes"]
[null,null,null,null,"","Yes"]
[null,null,null,null,"","Yes"]
[null,null,null,null,"","Yes"]
[null,null,null,null,"","Yes"]
[null,null,null,null,"","Yes"]
[null,null,null,null,"","Yes"]
[null,null,null,null,"","Yes"]
[null,null,null,null,"","Yes"]
[null,null,null,null,"","Yes"]
[null,null,null,null,"","Yes"]
[null,null,null,null,"","Yes"]
[null,null,null,null,"","Yes"]
[null,null,null,null,"","Yes"]
[null,null,null,null,"","Yes"]
[null,null,null,null,"","Yes"]
[null,null,null,null,"","Yes"]
[null,null,null,null,"","Yes"]
[null,null,null,null,"","Yes"]
[null,null,null,null,"","Yes"]
[null,null,null,null,"","Yes"]
[null,null,null,null,"","Yes"]
[null,null,null,null,"","Yes"]
[null,null,null,null,"","Yes"]
[null,null,null,null,"","Yes"]
[null,null,null,null,"","Yes"]
[null,null,null,null,"","Yes"]
[null,null,null,null,"","Yes"]
[null,null,null,null,"","Yes"]
[null,null,null,null,"","Yes"]
[null,null,null,null,"","Yes"]
[null,null,null,null,"","Yes"]
[null,null,null,null,"","Yes"]
[null,null,null,null,"","Yes"]
[null,null,null,null,"","Yes"]
[null,null,null,null,"","Yes"]
[null,null,null,null,"","Yes"]
[null,null,null,null,"","Yes"]
[null,null,null,null,"","Yes"]
[null,null,null,null,"","Yes"]
[null,null,null,null,"","Yes"]
[null,null,null,null,"","Yes"]
[null,null,null,null,"","Yes"]
[null,null,null,null,"","Yes"]
[null,null,null,null,"","Yes"]
[null,null,null,null,"","Yes"]
[null,null,null,null,"","Yes"]
[null,null,null,null,"","Yes"]
[null,null,null,null,"","Yes"]
[null,null,null,null,"","Yes"]
[null,null,null,null,"","Yes"]
[null,null,null,null,"","Yes"]
[null,null,null,null,"","Yes"]
[null,null,null,null,"","Yes"]
[null,null,null,null,"","Yes"]
[null,null,null,null,"","Yes"]
[null,null,null,null,"","Yes"]
[null,null,null,null,"","Yes"]
[null,null,null,null,"","Yes"]
[null,null,null,null,"","Yes"]
[null,null,null,null,"","Yes"]
[null,null,null,null,"","Yes"]
[null,null,null,null,"","Yes"]
[null,null,null,null,{"$f":"LEFT(RIGHT(B3843,6),6)","v":""},{"$f":"IF(COUNTIF($A:$A,$E3843)>0,\"Yes\", \"No\")","v":"Yes"}]
[null,null,null,null,"","Yes"]
[null,null,null,null,"","Yes"]
[null,null,null,null,"","Yes"]
[null,null,null,null,"","Yes"]
[null,null,null,null,"","Yes"]
[null,null,null,null,"","Yes"]
[null,null,null,null,"","Yes"]
[null,null,null,null,"","Yes"]
[null,null,null,null,"","Yes"]
[null,null,null,null,"","Yes"]
[null,null,null,null,"","Yes"]
[null,null,null,null,"","Yes"]
[null,null,null,null,"","Yes"]
[null,null,null,null,"","Yes"]
[null,null,null,null,"","Yes"]
[null,null,null,null,"","Yes"]
[null,null,null,null,"","Yes"]
[null,null,null,null,"","Yes"]
[null,null,null,null,"","Yes"]
[null,null,null,null,"","Yes"]
[null,null,null,null,"","Yes"]
[null,null,null,null,"","Yes"]
[null,null,null,null,"","Yes"]
[null,null,null,null,"","Yes"]
[null,null,null,null,"","Yes"]
[null,null,null,null,"","Yes"]
[null,null,null,null,"","Yes"]
[null,null,null,null,"","Yes"]
[null,null,null,null,"","Yes"]
[null,null,null,null,"","Yes"]
[null,null,null,null,"","Yes"]
[null,null,null,null,"","Yes"]
[null,null,null,null,"","Yes"]
[null,null,null,null,"","Yes"]
[null,null,null,null,"","Yes"]
[null,null,null,null,"","Yes"]
[null,null,null,null,"","Yes"]
[null,null,null,null,"","Yes"]
[null,null,null,null,"","Yes"]
[null,null,null,null,"","Yes"]
[null,null,null,null,"","Yes"]
[null,null,null,null,"","Yes"]
[null,null,null,null,"","Yes"]
[null,null,null,null,"","Yes"]
[null,null,null,null,"","Yes"]
[null,null,null,null,"","Yes"]
[null,null,null,null,"","Yes"]
[null,null,null,null,"","Yes"]
[null,null,null,null,"","Yes"]
[null,null,null,null,"","Yes"]
[null,null,null,null,"","Yes"]
[null,null,null,null,"","Yes"]
[null,null,null,null,"","Yes"]
[null,null,null,null,"","Yes"]
[null,null,null,null,"","Yes"]
[null,null,null,null,"","Yes"]
[null,null,null,null,"","Yes"]
[null,null,null,null,"","Yes"]
[null,null,null,null,"","Yes"]
[null,null,null,null,"","Yes"]
[null,null,null,null,"","Yes"]
[null,null,null,null,"","Yes"]
[null,null,null,null,"","Yes"]
[null,null,null,null,{"$f":"LEFT(RIGHT(B3907,6),6)","v":""},{"$f":"IF(COUNTIF($A:$A,$E3907)>0,\"Yes\", \"No\")","v":"Yes"}]
[null,null,null,null,"","Yes"]
[null,null,null,null,"","Yes"]
[null,null,null,null,"","Yes"]
[null,null,null,null,"","Yes"]
[null,null,null,null,"","Yes"]
[null,null,null,null,"","Yes"]
[null,null,null,null,"","Yes"]
[null,null,null,null,"","Yes"]
[null,null,null,null,"","Yes"]
[null,null,null,null,"","Yes"]
[null,null,null,null,"","Yes"]
[null,null,null,null,"","Yes"]
[null,null,null,null,"","Yes"]
[null,null,null,null,"","Yes"]
[null,null,null,null,"","Yes"]
[null,null,null,null,"","Yes"]
[null,null,null,null,"","Yes"]
[null,null,null,null,"","Yes"]
[null,null,null,null,"","Yes"]
[null,null,null,null,"","Yes"]
[null,null,null,null,"","Yes"]
[null,null,null,null,"","Yes"]
[null,null,null,null,"","Yes"]
[null,null,null,null,"","Yes"]
[null,null,null,null,"","Yes"]
[null,null,null,null,"","Yes"]
[null,null,null,null,"","Yes"]
[null,null,null,null,"","Yes"]
[null,null,null,null,"","Yes"]
[null,null,null,null,"","Yes"]
[null,null,null,null,"","Yes"]
[null,null,null,null,"","Yes"]
[null,null,null,null,"","Yes"]
[null,null,null,null,"","Yes"]
[null,null,null,null,"","Yes"]
[null,null,null,null,"","Yes"]
[null,null,null,null,"","Yes"]
[null,null,null,null,"","Yes"]
[null,null,null,null,"","Yes"]
[null,null,null,null,"","Yes"]
[null,null,null,null,"","Yes"]
[null,null,null,null,"","Yes"]
[null,null,null,null,"","Yes"]
[null,null,null,null,"","Yes"]
[null,null,null,null,"","Yes"]
[null,null,null,null,"","Yes"]
[null,null,null,null,"","Yes"]
[null,null,null,null,"","Yes"]
[null,null,null,null,"","Yes"]
[null,null,null,null,"","Yes"]
[null,null,null,null,"","Yes"]
[null,null,null,null,"","Yes"]
[null,null,null,null,"","Yes"]
[null,null,null,null,"","Yes"]
[null,null,null,null,"","Yes"]
[null,null,null,null,"","Yes"]
[null,null,null,null,"","Yes"]
[null,null,null,null,"","Yes"]
[null,null,null,null,"","Yes"]
[null,null,null,null,"","Yes"]
[null,null,null,null,"","Yes"]
[null,null,null,null,"","Yes"]
[null,null,null,null,"","Yes"]
[null,null,null,null,{"$f":"LEFT(RIGHT(B3971,6),6)","v":""},{"$f":"IF(COUNTIF($A:$A,$E3971)>0,\"Yes\", \"No\")","v":"Yes"}]
[null,null,null,null,"","Yes"]
[null,null,null,null,"","Yes"]
[null,null,null,null,"","Yes"]
[null,null,null,null,"","Yes"]
[null,null,null,null,"","Yes"]
[null,null,null,null,"","Yes"]
[null,null,null,null,"","Yes"]
[null,null,null,null,"","Yes"]
[null,null,null,null,"","Yes"]
[null,null,null,null,"","Yes"]
[null,null,null,null,"","Yes"]
[null,null,null,null,"","Yes"]
[null,null,null,null,"","Yes"]
[null,null,null,null,"","Yes"]
[null,null,null,null,"","Yes"]
[null,null,null,null,"","Yes"]
[null,null,null,null,"","Yes"]
[null,null,null,null,"","Yes"]
[null,null,null,null,"","Yes"]
[null,null,null,null,"","Yes"]
[null,null,null,null,"","Yes"]
[null,null,null,null,"","Yes"]
[null,null,null,null,"","Yes"]
[null,null,null,null,"","Yes"]
[null,null,null,null,"","Yes"]
[null,null,null,null,"","Yes"]
[null,null,null,null,"","Yes"]
[null,null,null,null,"","Yes"]
[null,null,null,null,"","Yes"]

{"sheet":"Instructions","index":1,"n_rows":219,"n_cols":9,"rows_kept":219,"cut":false,"hidden":false,"merged":[]}
["Download csv results data from Qualtrics"]
[]
["Copy Sona ID numbers from the Qualtrics data:"]
[]
[]
[]
[]
[]
[]
[]
[]
[]
[]
[]
[]
[]
[]
[]
["Paste Sona IDs into cell A2 of the Template sheet in this workbook:"]
[]
[]
[]
[]
[]
[]
[]
[]
[]
[]
[]
[]
[]
[]
[]
["On the Sona site, under the \"View/Administer Time Slots\" page, click on \"View Printer-Friendly List of Signups\""]
[]
[]
[]
[]
[]
["In the window that pops up, select the date of the timeslots you want to check, and hit \"Update\""]
[]
[]
[]
[]
[]
[]
[]
[]
[]
[]
[]
[]
[]
[]
[]
[]
[]
[]
[]
[]
[]
[]
[]
[]
[]
[]
[]
[]
[]
[]
[]
[]
["Highlight from the top:",null,null,null,null,null,null,null,"Note: If nothing appears after you hit update, scroll past the next little bit for special instructions"]
[]
[]
[]
[]
[]
[]
[]
[]
[]
[]
[]
[]
[]
[]
[]
[]
["To the bottom:"]
[]
[]
[]
[]
[]
[]
[]
[]
[]
[]
[]
[]
[]
["And paste into cell B2 in the Template sheet in this workbook:"]
[]
[]
[]
[]
[]
[]
[]
[]
[]
[]
[]
[]
[]
[]
[]
[]
[]
[]
[]
[]
[]
[]
[]
["If the cell in column F evaluates to \"Yes\" and goes green, the person with the Sona ID on that row in the E column has completed the survey, otherwise they haven't"]
[]
[]
[]
[]
[]
[]
[]
[]
[]
[]
[]
[]
[]
[]
[]
[]
[]
[]
[]
[]
[]
[]
[]
[]
[]
[]
[]
[]
[]
["If it's an online study and nothing appears in the printer-friendly version:"]
[]
["On the \"View/Administer Timeslots\" page, highlight from the top:"]
[]
[]
[]
[]
[]
[]
[]
[]
[]
[]
[]
[]
[]
[]
[]
["To the bottom:"]
[]
[]
[]
[]
[]
[]
[]
[]
[]
[]
[]
[]
[]
[]
["And paste into cell B2 in the Template sheet in this workbook (just select cell B2 and paste there - the column will automatically fill up):"]
[]
[]
[]
[]
[]
[]
[]
[]
[]
[]
[]
[]
[]
[]
[]
[]
[]
[]
[]
[]
["Enter the number of participants into cell J1 of the Template sheet and hit the \"Adjust IDs\" button. It might take a moment to clean everything up"]
["Note: Make sure you enter the number of participants that took part in the study, NOT the number of rows that are in the Excel file"]
[]
[]
[]
[]
["Similar to above, if the cell in column F evaluates to \"Yes\" and goes green, the person with the Sona ID on that row in the E column has completed the survey, otherwise they haven't"]